Workbook

Sheet Luca_73
B3: GIACENZE INIZIALI NEI VARI MAGAZZINI AL 01 GENNAIO 2014
B4: COD. ART. | C4: DESCRIZIONE ARTICOLO | D4: Q.TA' Messina | E4: Q.TA' Roma | F4: Q.TA' Firenze | G4: Q.TA' Milano | H4: Q.TA' Brescia | I4: Q.TA' totale
B5: BVD-350/EJ | C5: CARTUCCIA FILTRO DA 8 MICRON | D5: 200 | E5: 228 | F5: 307 | G5: 139 | H5: 354 | I5: =SUM(D5:H5) -> 1228
B6: DBY-128/GN | C6: AMMONIACA ANIDRA UN BOMBOLA DA KG.25 | D6: 167 | E6: 247 | F6: 232 | G6: 341 | H6: 366 | I6: =SUM(D6:H6) -> 1353
B7: EJJ-243/RK | C7: OLFLEX FD CLASSIC 810 7G0,5 | D7: 207 | E7: 354 | F7: 156 | G7: 194 | H7: 182 | I7: 1093
B8: EVW-340/RN | C8: OLFLEX FD CLASSIC 810 CY 4G0,5 | D8: 158 | E8: 369 | F8: 378 | G8: 150 | H8: 133 | I8: 1188
B9: FRF-171/ZE | C9: KIT GUARNIZIONI LC25...6X/LC25DB/DR-5X | D9: 119 | E9: 152 | F9: 153 | G9: 376 | H9: 208 | I9: 1008
B10: GTN-188/OI | C10: VALVOLA RITEGNO A PIASTRA Z1S 10 P2-3X/V | D10: 202 | E10: 215 | F10: 290 | G10: 209 | H10: 162 | I10: 1078
B11: HOU-335/QO | C11: VALVOLA DI RITEGNO PILOTATA Z2FS 16-3X/S2 | D11: 194 | E11: 249 | F11: 200 | G11: 168 | H11: 359 | I11: 1170
B12: HYM-126/TJ | C12: VALVOLA RIDUTTRICE DI PRESSIONE DA 40 MBAR | D12: 150 | E12: 215 | F12: 285 | G12: 234 | H12: 223 | I12: 1107
B13: IAB-347/TY | C13: REGOLATORE DI FLUSSO Z2FS 10-3-3 X/ V | D13: 154 | E13: 307 | F13: 174 | G13: 86 | H13: 118 | I13: 839
B14: IGF-330/RW | C14: RUOTE 65 SERIE RINFORZATA CON FRENO | D14: 157 | E14: 324 | F14: 338 | G14: 183 | H14: 199 | I14: 1201
B15: KWO-343/SK | C15: VITI TCCEI 12.9 UNI 5931 BR. M20 X 140 | D15: 208 | E15: 293 | F15: 326 | G15: 176 | H15: 339 | I15: 1342
B16: KWX-234/AH | C16: KIT REVISIONE CILINDRO M.W. | D16: 213 | E16: 251 | F16: 365 | G16: 247 | H16: 234 | I16: 1310
B17: LBW-277/ME | C17: KIT COMPLETO GUARNIZIONI PER CILINDRO 80 | D17: 209 | E17: 303 | F17: 290 | G17: 178 | H17: 171 | I17: 1151
B18: LCJ-304/BX | C18: KIT REVISIONE CILINDRO M.W. | D18: 160 | E18: 353 | F18: 242 | G18: 82 | H18: 320 | I18: 1157
B19: NWC-213/WR | C19: KIT MAGNETE M.W. | D19: 118 | E19: 253 | F19: 330 | G19: 189 | H19: 233 | I19: 1123
B20: OCI-162/XK | C20: KIT COMPLETO GUARNIZIONI CILINDRO 80 CMPC | D20: 137 | E20: 168 | F20: 306 | G20: 145 | H20: 362 | I20: 1118
B21: OQJ-149/CP | C21: KIT COMPLETO GUARNIZIONI CILINDRO 125 | D21: 178 | E21: 344 | F21: 150 | G21: 166 | H21: 131 | I21: 969
B22: OYZ-311/GH | C22: COPERCHIO ELEMENTO LOGICO LFA 25 KWA-7X/ | D22: 189 | E22: 269 | F22: 174 | G22: 203 | H22: 317 | I22: 1152
B23: QBI-332/YQ | C23: FORCELLA FEMMINA CON SNODO SGS/M16X1.5 | D23: 230 | E23: 128 | F23: 312 | G23: 271 | H23: 219 | I23: 1160
B24: RVA-370/MO | C24: ELEMENTO LOGICO LC 40 DB20E7X/ | D24: 143 | E24: 252 | F24: 339 | G24: 166 | H24: 310 | I24: 1210
B25: RVG-263/JX | C25: SERVOVALVOLA CON ROTORE DINAMICO | D25: 194 | E25: 338 | F25: 315 | G25: 108 | H25: 363 | I25: 1318
B26: SGY-295/PG | C26: PIGNONE SEMPL. 3/4 Z9" | D26: 206 | E26: 191 | F26: 346 | G26: 275 | H26: 94 | I26: 1112
B27: SYA-341/BM | C27: PIGNONI SEMPLICI 3/4 Z21 | D27: 155 | E27: 235 | F27: 89 | G27: 252 | H27: 319 | I27: 1050
B28: WTT-322/YR | C28: CURVA 45ｰ F.F. 1 ZINC." | D28: 232 | E28: 181 | F28: 344 | G28: 285 | H28: 161 | I28: 1203
B32: TABELLA ARTICOLI PRELEVATI NEL 2014 DAI DIVERSI MAGAZZINI
B33: COD. ART. | C33: DESCRIZIONE ARTICOLO | D33: SEDE | E33: Q.TA' prelevata | F33: DATA | G33: Q.TA' RESIDUA
B34: KWO-343/SK | C34: VITI TCCEI 12.9 UNI 5931 BR. M20 X 140 | D34: Brescia | E34: 18 | F34: 2014-01-15 | G34: =VLOOKUP(B34,$B$5:$I$28,MATCH("Q.TA' " &D34,$D$4:$I$4,0)+2,FALSE)-SUMIFS($E$34:$E$94,$B$34:$B$94,B34,$D$34:$D$94,D34,$F$34:$F$94,"<=" & F34) -> 321
B35: SGY-295/PG | C35: PIGNONE SEMPL. 3/4 Z9" | D35: Milano | E35: 10 | F35: 2014-01-18 | G35: =VLOOKUP(B35,$B$5:$I$28,MATCH("Q.TA' " &D35,$D$4:$I$4,0)+2,FALSE)-SUMIFS($E$34:$E$94,$B$34:$B$94,B35,$D$34:$D$94,D35,$F$34:$F$94,"<=" & F35) -> 265
B36: QBI-332/YQ | C36: FORCELLA FEMMINA CON SNODO SGS/M16X1.5 | D36: Roma | E36: 6 | F36: 2014-01-25 | G36: 122
B37: RVG-263/JX | C37: SERVOVALVOLA CON ROTORE DINAMICO | D37: Firenze | E37: 4 | F37: 2014-02-01 | G37: 311
B38: SGY-295/PG | C38: PIGNONE SEMPL. 3/4 Z9" | D38: Roma | E38: 6 | F38: 2014-02-09 | G38: 185
B39: OQJ-149/CP | C39: KIT COMPLETO GUARNIZIONI CILINDRO 125 | D39: Firenze | E39: 10 | F39: 2014-02-11 | G39: 140
B40: GTN-188/OI | C40: VALVOLA RITEGNO A PIASTRA Z1S 10 P2-3X/V | D40: Roma | E40: 4 | F40: 2014-02-16 | G40: 211
B41: KWO-343/SK | C41: VITI TCCEI 12.9 UNI 5931 BR. M20 X 140 | D41: Brescia | E41: 12 | F41: 2014-02-23 | G41: 309
B42: IAB-347/TY | C42: REGOLATORE DI FLUSSO Z2FS 10-3-3 X/ V | D42: Roma | E42: 4 | F42: 2014-03-01 | G42: 303
B43: SGY-295/PG | C43: PIGNONE SEMPL. 3/4 Z9" | D43: Firenze | E43: 6 | F43: 2014-03-05 | G43: 340
B44: OYZ-311/GH | C44: COPERCHIO ELEMENTO LOGICO LFA 25 KWA-7X/ | D44: Firenze | E44: 4 | F44: 2014-03-10 | G44: 170
B45: DBY-128/GN | C45: AMMONIACA ANIDRA UN BOMBOLA DA KG.25 | D45: Brescia | E45: 14 | F45: 2014-03-18 | G45: 352
B46: KWO-343/SK | C46: VITI TCCEI 12.9 UNI 5931 BR. M20 X 140 | D46: Firenze | E46: 16 | F46: 2014-03-23 | G46: 310
B47: LCJ-304/BX | C47: KIT REVISIONE CILINDRO M.W. | D47: Brescia | E47: 16 | F47: 2014-03-26 | G47: 304
B48: SYA-341/BM | C48: PIGNONI SEMPLICI 3/4 Z21 | D48: Roma | E48: 14 | F48: 2014-03-31 | G48: 221
B49: IGF-330/RW | C49: RUOTE 65 SERIE RINFORZATA CON FRENO | D49: Brescia | E49: 10 | F49: 2014-04-06 | G49: 189
B50: BVD-350/EJ | C50: CARTUCCIA FILTRO DA 8 MICRON | D50: Milano | E50: 4 | F50: 2014-04-09 | G50: 135
B51: EVW-340/RN | C51: OLFLEX FD CLASSIC 810 CY 4G0,5 | D51: Firenze | E51: 8 | F51: 2014-04-16 | G51: 370
B52: NWC-213/WR | C52: KIT MAGNETE M.W. | D52: Milano | E52: 6 | F52: 2014-04-23 | G52: 183
B53: WTT-322/YR | C53: CURVA 45ｰ F.F. 1 ZINC." | D53: Milano | E53: 14 | F53: 2014-04-30 | G53: 271
B54: NWC-213/WR | C54: KIT MAGNETE M.W. | D54: Messina | E54: 16 | F54: 2014-05-07 | G54: 102
B55: SYA-341/BM | C55: PIGNONI SEMPLICI 3/4 Z21 | D55: Roma | E55: 18 | F55: 2014-05-12 | G55: 203
B56: OQJ-149/CP | C56: KIT COMPLETO GUARNIZIONI CILINDRO 125 | D56: Roma | E56: 18 | F56: 2014-05-20 | G56: 326
B57: SYA-341/BM | C57: PIGNONI SEMPLICI 3/4 Z21 | D57: Roma | E57: 18 | F57: 2014-05-27 | G57: 185
B58: OCI-162/XK | C58: KIT COMPLETO GUARNIZIONI CILINDRO 80 CMPC | D58: Brescia | E58: 18 | F58: 2014-05-30 | G58: 344
B59: HYM-126/TJ | C59: VALVOLA RIDUTTRICE DI PRESSIONE DA 40 MBAR | D59: Milano | E59: 14 | F59: 2014-06-05 | G59: 220
B60: LCJ-304/BX | C60: KIT REVISIONE CILINDRO M.W. | D60: Milano | E60: 10 | F60: 2014-06-11 | G60: 72
B61: RVG-263/JX | C61: SERVOVALVOLA CON ROTORE DINAMICO | D61: Messina | E61: 8 | F61: 2014-06-17 | G61: 186
B62: OQJ-149/CP | C62: KIT COMPLETO GUARNIZIONI CILINDRO 125 | D62: Messina | E62: 16 | F62: 2014-06-25 | G62: 162
B63: DBY-128/GN | C63: AMMONIACA ANIDRA UN BOMBOLA DA KG.25 | D63: Roma | E63: 8 | F63: 2014-06-28 | G63: 239
B64: SGY-295/PG | C64: PIGNONE SEMPL. 3/4 Z9" | D64: Brescia | E64: 10 | F64: 2014-06-30 | G64: 84
B65: NWC-213/WR | C65: KIT MAGNETE M.W. | D65: Messina | E65: 10 | F65: 2014-07-07 | G65: 92
B66: FRF-171/ZE | C66: KIT GUARNIZIONI LC25...6X/LC25DB/DR-5X | D66: Firenze | E66: 12 | F66: 2014-07-10 | G66: 141
B67: OCI-162/XK | C67: KIT COMPLETO GUARNIZIONI CILINDRO 80 CMPC | D67: Firenze | E67: 12 | F67: 2014-07-18 | G67: 294
B68: GTN-188/OI | C68: VALVOLA RITEGNO A PIASTRA Z1S 10 P2-3X/V | D68: Milano | E68: 16 | F68: 2014-07-24 | G68: 193
B69: RVA-370/MO | C69: ELEMENTO LOGICO LC 40 DB20E7X/ | D69: Messina | E69: 6 | F69: 2014-07-29 | G69: 137
B70: EJJ-243/RK | C70: OLFLEX FD CLASSIC 810 7G0,5 | D70: Roma | E70: 16 | F70: 2014-08-06 | G70: 338
B71: HYM-126/TJ | C71: VALVOLA RIDUTTRICE DI PRESSIONE DA 40 MBAR | D71: Brescia | E71: 14 | F71: 2014-08-13 | G71: 209
B72: LBW-277/ME | C72: KIT COMPLETO GUARNIZIONI PER CILINDRO 80 | D72: Milano | E72: 16 | F72: 2014-08-19 | G72: 162
B73: RVG-263/JX | C73: SERVOVALVOLA CON ROTORE DINAMICO | D73: Milano | E73: 16 | F73: 2014-08-22 | G73: 92
B74: OQJ-149/CP | C74: KIT COMPLETO GUARNIZIONI CILINDRO 125 | D74: Roma | E74: 6 | F74: 2014-08-25 | G74: 320
B75: RVA-370/MO | C75: ELEMENTO LOGICO LC 40 DB20E7X/ | D75: Brescia | E75: 14 | F75: 2014-08-30 | G75: 296
B76: DBY-128/GN | C76: AMMONIACA ANIDRA UN BOMBOLA DA KG.25 | D76: Firenze | E76: 12 | F76: 2014-09-02 | G76: 220
B77: LCJ-304/BX | C77: KIT REVISIONE CILINDRO M.W. | D77: Milano | E77: 4 | F77: 2014-09-08 | G77: 68
B78: LCJ-304/BX | C78: KIT REVISIONE CILINDRO M.W. | D78: Messina | E78: 16 | F78: 2014-09-10 | G78: 144
B79: GTN-188/OI | C79: VALVOLA RITEGNO A PIASTRA Z1S 10 P2-3X/V | D79: Messina | E79: 18 | F79: 2014-09-14 | G79: 184
B80: OYZ-311/GH | C80: COPERCHIO ELEMENTO LOGICO LFA 25 KWA-7X/ | D80: Roma | E80: 14 | F80: 2014-09-17 | G80: 255
B81: QBI-332/YQ | C81: FORCELLA FEMMINA CON SNODO SGS/M16X1.5 | D81: Messina | E81: 16 | F81: 2014-09-22 | G81: 214
B82: OQJ-149/CP | C82: KIT COMPLETO GUARNIZIONI CILINDRO 125 | D82: Messina | E82: 8 | F82: 2014-09-28 | G82: 154
B83: HOU-335/QO | C83: VALVOLA DI RITEGNO PILOTATA Z2FS 16-3X/S2 | D83: Roma | E83: 12 | F83: 2014-09-30 | G83: 237
B84: RVG-263/JX | C84: SERVOVALVOLA CON ROTORE DINAMICO | D84: Brescia | E84: 12 | F84: 2014-10-08 | G84: 351
B85: FRF-171/ZE | C85: KIT GUARNIZIONI LC25...6X/LC25DB/DR-5X | D85: Firenze | E85: 18 | F85: 2014-10-16 | G85: 123
B86: FRF-171/ZE | C86: KIT GUARNIZIONI LC25...6X/LC25DB/DR-5X | D86: Brescia | E86: 16 | F86: 2014-10-22 | G86: 192
B87: KWO-343/SK | C87: VITI TCCEI 12.9 UNI 5931 BR. M20 X 140 | D87: Firenze | E87: 12 | F87: 2014-10-28 | G87: 298
B88: IGF-330/RW | C88: RUOTE 65 SERIE RINFORZATA CON FRENO | D88: Milano | E88: 14 | F88: 2014-11-01 | G88: 169
B89: EVW-340/RN | C89: OLFLEX FD CLASSIC 810 CY 4G0,5 | D89: Brescia | E89: 8 | F89: 2014-11-09 | G89: 125
B90: OQJ-149/CP | C90: KIT COMPLETO GUARNIZIONI CILINDRO 125 | D90: Firenze | E90: 4 | F90: 2014-11-13 | G90: 136
B91: LBW-277/ME | C91: KIT COMPLETO GUARNIZIONI PER CILINDRO 80 | D91: Messina | E91: 8 | F91: 2014-11-20 | G91: 201
B92: KWO-343/SK | C92: VITI TCCEI 12.9 UNI 5931 BR. M20 X 140 | D92: Milano | E92: 18 | F92: 2014-11-26 | G92: 158
B93: RVA-370/MO | C93: ELEMENTO LOGICO LC 40 DB20E7X/ | D93: Messina | E93: 14 | F93: 2014-12-04 | G93: 123
B94: BVD-350/EJ | C94: CARTUCCIA FILTRO DA 8 MICRON | D94: Brescia | E94: 4 | F94: 2014-12-12 | G94: 350
C97: Seleziona il Magazzino : | D97: Roma
B101: GIACENZE FINALI NEL MAGAZZINO SELEZIONATO AL 31 DICEMBRE 2014
B102: COD. ART. | C102: DESCRIZIONE ARTICOLO | D102: ="Q.TA' " &D97 -> Q.TA' Roma
B103: BVD-350/EJ | C103: CARTUCCIA FILTRO DA 8 MICRON | D103: =VLOOKUP(B103,$B$5:$I$28,MATCH($D$102,$D$4:$I$4,0)+2,FALSE)-SUMIFS($E$34:$E$94,$B$34:$B$94,B103,$D$34:$D$94,$D$97) -> 228
B104: DBY-128/GN | C104: AMMONIACA ANIDRA UN BOMBOLA DA KG.25 | D104: =VLOOKUP(B104,$B$5:$I$28,MATCH($D$102,$D$4:$I$4,0)+2,FALSE)-SUMIFS($E$34:$E$94,$B$34:$B$94,B104,$D$34:$D$94,$D$97) -> 239
B105: EJJ-243/RK | C105: OLFLEX FD CLASSIC 810 7G0,5 | D105: 338
B106: EVW-340/RN | C106: OLFLEX FD CLASSIC 810 CY 4G0,5 | D106: 369
B107: FRF-171/ZE | C107: KIT GUARNIZIONI LC25...6X/LC25DB/DR-5X | D107: 152
B108: GTN-188/OI | C108: VALVOLA RITEGNO A PIASTRA Z1S 10 P2-3X/V | D108: 211
B109: HOU-335/QO | C109: VALVOLA DI RITEGNO PILOTATA Z2FS 16-3X/S2 | D109: 237
B110: HYM-126/TJ | C110: VALVOLA RIDUTTRICE DI PRESSIONE DA 40 MBAR | D110: 215
B111: IAB-347/TY | C111: REGOLATORE DI FLUSSO Z2FS 10-3-3 X/ V | D111: 303
B112: IGF-330/RW | C112: RUOTE 65 SERIE RINFORZATA CON FRENO | D112: 324
B113: KWO-343/SK | C113: VITI TCCEI 12.9 UNI 5931 BR. M20 X 140 | D113: 293
B114: KWX-234/AH | C114: KIT REVISIONE CILINDRO M.W. | D114: 251
B115: LBW-277/ME | C115: KIT COMPLETO GUARNIZIONI PER CILINDRO 80 | D115: 303
B116: LCJ-304/BX | C116: KIT REVISIONE CILINDRO M.W. | D116: 353
B117: NWC-213/WR | C117: KIT MAGNETE M.W. | D117: 253
B118: OCI-162/XK | C118: KIT COMPLETO GUARNIZIONI CILINDRO 80 CMPC | D118: 168
B119: OQJ-149/CP | C119: KIT COMPLETO GUARNIZIONI CILINDRO 125 | D119: 320
B120: OYZ-311/GH | C120: COPERCHIO ELEMENTO LOGICO LFA 25 KWA-7X/ | D120: 255
B121: QBI-332/YQ | C121: FORCELLA FEMMINA CON SNODO SGS/M16X1.5 | D121: 122
B122: RVA-370/MO | C122: ELEMENTO LOGICO LC 40 DB20E7X/ | D122: 252
B123: RVG-263/JX | C123: SERVOVALVOLA CON ROTORE DINAMICO | D123: 338
B124: SGY-295/PG | C124: PIGNONE SEMPL. 3/4 Z9" | D124: 185
B125: SYA-341/BM | C125: PIGNONI SEMPLICI 3/4 Z21 | D125: 185
B126: WTT-322/YR | C126: CURVA 45ｰ F.F. 1 ZINC." | D126: 181

Sheet Marius
A1: Marius-VBA
B3: GIACENZE INIZIALI NEI VARI MAGAZZINI AL 01 GENNAIO 2014
B4: COD. ART. | C4: DESCRIZIONE ARTICOLO | D4: Q.TA' Messina | E4: Q.TA' Roma | F4: Q.TA' Firenze | G4: Q.TA' Milano | H4: Q.TA' Brescia | I4: Q.TA' totale
B5: BVD-350/EJ | C5: CARTUCCIA FILTRO DA 8 MICRON | D5: 200 | E5: 228 | F5: 307 | G5: 139 | H5: 354 | I5: =SUM(D5:H5) -> 1228
B6: DBY-128/GN | C6: AMMONIACA ANIDRA UN BOMBOLA DA KG.25 | D6: 167 | E6: 247 | F6: 232 | G6: 341 | H6: 366 | I6: =SUM(D6:H6) -> 1353
B7: EJJ-243/RK | C7: OLFLEX FD CLASSIC 810 7G0,5 | D7: 207 | E7: 354 | F7: 156 | G7: 194 | H7: 182 | I7: 1093
B8: EVW-340/RN | C8: OLFLEX FD CLASSIC 810 CY 4G0,5 | D8: 158 | E8: 369 | F8: 378 | G8: 150 | H8: 133 | I8: 1188
B9: FRF-171/ZE | C9: KIT GUARNIZIONI LC25...6X/LC25DB/DR-5X | D9: 119 | E9: 152 | F9: 153 | G9: 376 | H9: 208 | I9: 1008
B10: GTN-188/OI | C10: VALVOLA RITEGNO A PIASTRA Z1S 10 P2-3X/V | D10: 202 | E10: 215 | F10: 290 | G10: 209 | H10: 162 | I10: 1078
B11: HOU-335/QO | C11: VALVOLA DI RITEGNO PILOTATA Z2FS 16-3X/S2 | D11: 194 | E11: 249 | F11: 200 | G11: 168 | H11: 359 | I11: 1170
B12: HYM-126/TJ | C12: VALVOLA RIDUTTRICE DI PRESSIONE DA 40 MBAR | D12: 150 | E12: 215 | F12: 285 | G12: 234 | H12: 223 | I12: 1107
B13: IAB-347/TY | C13: REGOLATORE DI FLUSSO Z2FS 10-3-3 X/ V | D13: 154 | E13: 307 | F13: 174 | G13: 86 | H13: 118 | I13: 839
B14: IGF-330/RW | C14: RUOTE 65 SERIE RINFORZATA CON FRENO | D14: 157 | E14: 324 | F14: 338 | G14: 183 | H14: 199 | I14: 1201
B15: KWO-343/SK | C15: VITI TCCEI 12.9 UNI 5931 BR. M20 X 140 | D15: 208 | E15: 293 | F15: 326 | G15: 176 | H15: 339 | I15: 1342
B16: KWX-234/AH | C16: KIT REVISIONE CILINDRO M.W. | D16: 213 | E16: 251 | F16: 365 | G16: 247 | H16: 234 | I16: 1310
B17: LBW-277/ME | C17: KIT COMPLETO GUARNIZIONI PER CILINDRO 80 | D17: 209 | E17: 303 | F17: 290 | G17: 178 | H17: 171 | I17: 1151
B18: LCJ-304/BX | C18: KIT REVISIONE CILINDRO M.W. | D18: 160 | E18: 353 | F18: 242 | G18: 82 | H18: 320 | I18: 1157
B19: NWC-213/WR | C19: KIT MAGNETE M.W. | D19: 118 | E19: 253 | F19: 330 | G19: 189 | H19: 233 | I19: 1123
B20: OCI-162/XK | C20: KIT COMPLETO GUARNIZIONI CILINDRO 80 CMPC | D20: 137 | E20: 168 | F20: 306 | G20: 145 | H20: 362 | I20: 1118
B21: OQJ-149/CP | C21: KIT COMPLETO GUARNIZIONI CILINDRO 125 | D21: 178 | E21: 344 | F21: 150 | G21: 166 | H21: 131 | I21: 969
B22: OYZ-311/GH | C22: COPERCHIO ELEMENTO LOGICO LFA 25 KWA-7X/ | D22: 189 | E22: 269 | F22: 174 | G22: 203 | H22: 317 | I22: 1152
B23: QBI-332/YQ | C23: FORCELLA FEMMINA CON SNODO SGS/M16X1.5 | D23: 230 | E23: 128 | F23: 312 | G23: 271 | H23: 219 | I23: 1160
B24: RVA-370/MO | C24: ELEMENTO LOGICO LC 40 DB20E7X/ | D24: 143 | E24: 252 | F24: 339 | G24: 166 | H24: 310 | I24: 1210
B25: RVG-263/JX | C25: SERVOVALVOLA CON ROTORE DINAMICO | D25: 194 | E25: 338 | F25: 315 | G25: 108 | H25: 363 | I25: 1318
B26: SGY-295/PG | C26: PIGNONE SEMPL. 3/4 Z9" | D26: 206 | E26: 191 | F26: 346 | G26: 275 | H26: 94 | I26: 1112
B27: SYA-341/BM | C27: PIGNONI SEMPLICI 3/4 Z21 | D27: 155 | E27: 235 | F27: 89 | G27: 252 | H27: 319 | I27: 1050
B28: WTT-322/YR | C28: CURVA 45ｰ F.F. 1 ZINC." | D28: 232 | E28: 181 | F28: 344 | G28: 285 | H28: 161 | I28: 1203
D30: =SUM(D5:D28) -> 4280 | E30: =SUM(E5:E28) -> 6219 | F30: 6441 | G30: 4823 | H30: 5877 | I30: =SUM(I5:I28) -> 27640 | J30: tot.rim.iniziali
B32: TABELLA ARTICOLI PRELEVATI NEL 2014 DAI DIVERSI MAGAZZINI
B33: COD. ART. | C33: DESCRIZIONE ARTICOLO | D33: SEDE | E33: Q.TA' prelevata | F33: DATA | G33: Q.TA' RESIDUA
B34: KWO-343/SK | C34: VITI TCCEI 12.9 UNI 5931 BR. M20 X 140 | D34: Brescia | E34: 18 | F34: 2014-01-15 | G34: 321
B35: SGY-295/PG | C35: PIGNONE SEMPL. 3/4 Z9" | D35: Milano | E35: 10 | F35: 2014-01-18 | G35: 265
B36: QBI-332/YQ | C36: FORCELLA FEMMINA CON SNODO SGS/M16X1.5 | D36: Roma | E36: 6 | F36: 2014-01-25 | G36: 122
B37: RVG-263/JX | C37: SERVOVALVOLA CON ROTORE DINAMICO | D37: Firenze | E37: 4 | F37: 2014-02-01 | G37: 311
B38: SGY-295/PG | C38: PIGNONE SEMPL. 3/4 Z9" | D38: Roma | E38: 6 | F38: 2014-02-09 | G38: 185
B39: OQJ-149/CP | C39: KIT COMPLETO GUARNIZIONI CILINDRO 125 | D39: Firenze | E39: 10 | F39: 2014-02-11 | G39: 140
B40: GTN-188/OI | C40: VALVOLA RITEGNO A PIASTRA Z1S 10 P2-3X/V | D40: Roma | E40: 4 | F40: 2014-02-16 | G40: 211
B41: KWO-343/SK | C41: VITI TCCEI 12.9 UNI 5931 BR. M20 X 140 | D41: Brescia | E41: 12 | F41: 2014-02-23 | G41: 309
B42: IAB-347/TY | C42: REGOLATORE DI FLUSSO Z2FS 10-3-3 X/ V | D42: Roma | E42: 4 | F42: 2014-03-01 | G42: 303
B43: SGY-295/PG | C43: PIGNONE SEMPL. 3/4 Z9" | D43: Firenze | E43: 6 | F43: 2014-03-05 | G43: 340
B44: OYZ-311/GH | C44: COPERCHIO ELEMENTO LOGICO LFA 25 KWA-7X/ | D44: Firenze | E44: 4 | F44: 2014-03-10 | G44: 170
B45: DBY-128/GN | C45: AMMONIACA ANIDRA UN BOMBOLA DA KG.25 | D45: Brescia | E45: 14 | F45: 2014-03-18 | G45: 352
B46: KWO-343/SK | C46: VITI TCCEI 12.9 UNI 5931 BR. M20 X 140 | D46: Firenze | E46: 16 | F46: 2014-03-23 | G46: 310
B47: LCJ-304/BX | C47: KIT REVISIONE CILINDRO M.W. | D47: Brescia | E47: 16 | F47: 2014-03-26 | G47: 304
B48: SYA-341/BM | C48: PIGNONI SEMPLICI 3/4 Z21 | D48: Roma | E48: 14 | F48: 2014-03-31 | G48: 221
B49: IGF-330/RW | C49: RUOTE 65 SERIE RINFORZATA CON FRENO | D49: Brescia | E49: 10 | F49: 2014-04-06 | G49: 189
B50: BVD-350/EJ | C50: CARTUCCIA FILTRO DA 8 MICRON | D50: Milano | E50: 4 | F50: 2014-04-09 | G50: 135
B51: EVW-340/RN | C51: OLFLEX FD CLASSIC 810 CY 4G0,5 | D51: Firenze | E51: 8 | F51: 2014-04-16 | G51: 370
B52: NWC-213/WR | C52: KIT MAGNETE M.W. | D52: Milano | E52: 6 | F52: 2014-04-23 | G52: 183
B53: WTT-322/YR | C53: CURVA 45ｰ F.F. 1 ZINC." | D53: Milano | E53: 14 | F53: 2014-04-30 | G53: 271
B54: NWC-213/WR | C54: KIT MAGNETE M.W. | D54: Messina | E54: 16 | F54: 2014-05-07 | G54: 102
B55: SYA-341/BM | C55: PIGNONI SEMPLICI 3/4 Z21 | D55: Roma | E55: 18 | F55: 2014-05-12 | G55: 203
B56: OQJ-149/CP | C56: KIT COMPLETO GUARNIZIONI CILINDRO 125 | D56: Roma | E56: 18 | F56: 2014-05-20 | G56: 326
B57: SYA-341/BM | C57: PIGNONI SEMPLICI 3/4 Z21 | D57: Roma | E57: 18 | F57: 2014-05-27 | G57: 185
B58: OCI-162/XK | C58: KIT COMPLETO GUARNIZIONI CILINDRO 80 CMPC | D58: Brescia | E58: 18 | F58: 2014-05-30 | G58: 344
B59: HYM-126/TJ | C59: VALVOLA RIDUTTRICE DI PRESSIONE DA 40 MBAR | D59: Milano | E59: 14 | F59: 2014-06-05 | G59: 220
B60: LCJ-304/BX | C60: KIT REVISIONE CILINDRO M.W. | D60: Milano | E60: 10 | F60: 2014-06-11 | G60: 72
B61: RVG-263/JX | C61: SERVOVALVOLA CON ROTORE DINAMICO | D61: Messina | E61: 8 | F61: 2014-06-17 | G61: 186
B62: OQJ-149/CP | C62: KIT COMPLETO GUARNIZIONI CILINDRO 125 | D62: Messina | E62: 16 | F62: 2014-06-25 | G62: 162
B63: DBY-128/GN | C63: AMMONIACA ANIDRA UN BOMBOLA DA KG.25 | D63: Roma | E63: 8 | F63: 2014-06-28 | G63: 239
B64: SGY-295/PG | C64: PIGNONE SEMPL. 3/4 Z9" | D64: Brescia | E64: 10 | F64: 2014-06-30 | G64: 84
B65: NWC-213/WR | C65: KIT MAGNETE M.W. | D65: Messina | E65: 10 | F65: 2014-07-07 | G65: 92
B66: FRF-171/ZE | C66: KIT GUARNIZIONI LC25...6X/LC25DB/DR-5X | D66: Firenze | E66: 12 | F66: 2014-07-10 | G66: 141
B67: OCI-162/XK | C67: KIT COMPLETO GUARNIZIONI CILINDRO 80 CMPC | D67: Firenze | E67: 12 | F67: 2014-07-18 | G67: 294
B68: GTN-188/OI | C68: VALVOLA RITEGNO A PIASTRA Z1S 10 P2-3X/V | D68: Milano | E68: 16 | F68: 2014-07-24 | G68: 193
B69: RVA-370/MO | C69: ELEMENTO LOGICO LC 40 DB20E7X/ | D69: Messina | E69: 6 | F69: 2014-07-29 | G69: 137
B70: EJJ-243/RK | C70: OLFLEX FD CLASSIC 810 7G0,5 | D70: Roma | E70: 16 | F70: 2014-08-06 | G70: 338
B71: HYM-126/TJ | C71: VALVOLA RIDUTTRICE DI PRESSIONE DA 40 MBAR | D71: Brescia | E71: 14 | F71: 2014-08-13 | G71: 209
B72: LBW-277/ME | C72: KIT COMPLETO GUARNIZIONI PER CILINDRO 80 | D72: Milano | E72: 16 | F72: 2014-08-19 | G72: 162
B73: RVG-263/JX | C73: SERVOVALVOLA CON ROTORE DINAMICO | D73: Milano | E73: 16 | F73: 2014-08-22 | G73: 92
B74: OQJ-149/CP | C74: KIT COMPLETO GUARNIZIONI CILINDRO 125 | D74: Roma | E74: 6 | F74: 2014-08-25 | G74: 320
B75: RVA-370/MO | C75: ELEMENTO LOGICO LC 40 DB20E7X/ | D75: Brescia | E75: 14 | F75: 2014-08-30 | G75: 296
B76: DBY-128/GN | C76: AMMONIACA ANIDRA UN BOMBOLA DA KG.25 | D76: Firenze | E76: 12 | F76: 2014-09-02 | G76: 220
B77: LCJ-304/BX | C77: KIT REVISIONE CILINDRO M.W. | D77: Milano | E77: 4 | F77: 2014-09-08 | G77: 68
B78: LCJ-304/BX | C78: KIT REVISIONE CILINDRO M.W. | D78: Messina | E78: 16 | F78: 2014-09-10 | G78: 144
B79: GTN-188/OI | C79: VALVOLA RITEGNO A PIASTRA Z1S 10 P2-3X/V | D79: Messina | E79: 18 | F79: 2014-09-14 | G79: 184
B80: OYZ-311/GH | C80: COPERCHIO ELEMENTO LOGICO LFA 25 KWA-7X/ | D80: Roma | E80: 14 | F80: 2014-09-17 | G80: 255
B81: QBI-332/YQ | C81: FORCELLA FEMMINA CON SNODO SGS/M16X1.5 | D81: Messina | E81: 16 | F81: 2014-09-22 | G81: 214
B82: OQJ-149/CP | C82: KIT COMPLETO GUARNIZIONI CILINDRO 125 | D82: Messina | E82: 8 | F82: 2014-09-28 | G82: 154
B83: HOU-335/QO | C83: VALVOLA DI RITEGNO PILOTATA Z2FS 16-3X/S2 | D83: Roma | E83: 12 | F83: 2014-09-30 | G83: 237
B84: RVG-263/JX | C84: SERVOVALVOLA CON ROTORE DINAMICO | D84: Brescia | E84: 12 | F84: 2014-10-08 | G84: 351
B85: FRF-171/ZE | C85: KIT GUARNIZIONI LC25...6X/LC25DB/DR-5X | D85: Firenze | E85: 18 | F85: 2014-10-16 | G85: 123
B86: FRF-171/ZE | C86: KIT GUARNIZIONI LC25...6X/LC25DB/DR-5X | D86: Brescia | E86: 16 | F86: 2014-10-22 | G86: 192
B87: KWO-343/SK | C87: VITI TCCEI 12.9 UNI 5931 BR. M20 X 140 | D87: Firenze | E87: 12 | F87: 2014-10-28 | G87: 298
B88: IGF-330/RW | C88: RUOTE 65 SERIE RINFORZATA CON FRENO | D88: Milano | E88: 14 | F88: 2014-11-01 | G88: 169
B89: EVW-340/RN | C89: OLFLEX FD CLASSIC 810 CY 4G0,5 | D89: Brescia | E89: 8 | F89: 2014-11-09 | G89: 125
B90: OQJ-149/CP | C90: KIT COMPLETO GUARNIZIONI CILINDRO 125 | D90: Firenze | E90: 4 | F90: 2014-11-13 | G90: 136
B91: LBW-277/ME | C91: KIT COMPLETO GUARNIZIONI PER CILINDRO 80 | D91: Messina | E91: 8 | F91: 2014-11-20 | G91: 201
B92: KWO-343/SK | C92: VITI TCCEI 12.9 UNI 5931 BR. M20 X 140 | D92: Milano | E92: 18 | F92: 2014-11-26 | G92: 158
B93: RVA-370/MO | C93: ELEMENTO LOGICO LC 40 DB20E7X/ | D93: Messina | E93: 14 | F93: 2014-12-04 | G93: 123
B94: BVD-350/EJ | C94: CARTUCCIA FILTRO DA 8 MICRON | D94: Brescia | E94: 4 | F94: 2014-12-12 | G94: 350
H95: =SUM(E34:E94) -> 706 | I95: pezzi prelevati
D97: Firenze
B101: GIACENZE FINALI NEL MAGAZZINO SELEZIONATO AL 31 DICEMBRE 2014
B102: COD. ART. | C102: DESCRIZIONE ARTICOLO | D102: ="Q.TA' " &D97 -> Q.TA' Firenze | F102: Messina | G102: Roma | H102: Firenze | I102: Milano | J102: Brescia | K102: Q.TA' totale
B103: BVD-350/EJ | C103: CARTUCCIA FILTRO DA 8 MICRON | D103: 307 | F103: 200 | G103: 228 | H103: 307 | I103: 135 | J103: 350 | K103: =SUM(F103:J103) -> 1220
B104: DBY-128/GN | C104: AMMONIACA ANIDRA UN BOMBOLA DA KG.25 | D104: 220 | F104: 167 | G104: 239 | H104: 220 | I104: 341 | J104: 352 | K104: =SUM(F104:J104) -> 1319
B105: EJJ-243/RK | C105: OLFLEX FD CLASSIC 810 7G0,5 | D105: 156 | F105: 207 | G105: 338 | H105: 156 | I105: 194 | J105: 182 | K105: 1077
B106: EVW-340/RN | C106: OLFLEX FD CLASSIC 810 CY 4G0,5 | D106: 370 | F106: 158 | G106: 369 | H106: 370 | I106: 150 | J106: 125 | K106: 1172
B107: FRF-171/ZE | C107: KIT GUARNIZIONI LC25...6X/LC25DB/DR-5X | D107: 123 | F107: 119 | G107: 152 | H107: 123 | I107: 376 | J107: 192 | K107: 962
B108: GTN-188/OI | C108: VALVOLA RITEGNO A PIASTRA Z1S 10 P2-3X/V | D108: 290 | F108: 184 | G108: 211 | H108: 290 | I108: 193 | J108: 162 | K108: 1040
B109: HOU-335/QO | C109: VALVOLA DI RITEGNO PILOTATA Z2FS 16-3X/S2 | D109: 200 | F109: 194 | G109: 237 | H109: 200 | I109: 168 | J109: 359 | K109: 1158
B110: HYM-126/TJ | C110: VALVOLA RIDUTTRICE DI PRESSIONE DA 40 MBAR | D110: 285 | F110: 150 | G110: 215 | H110: 285 | I110: 220 | J110: 209 | K110: 1079
B111: IAB-347/TY | C111: REGOLATORE DI FLUSSO Z2FS 10-3-3 X/ V | D111: 174 | F111: 154 | G111: 303 | H111: 174 | I111: 86 | J111: 118 | K111: 835
B112: IGF-330/RW | C112: RUOTE 65 SERIE RINFORZATA CON FRENO | D112: 338 | F112: 157 | G112: 324 | H112: 338 | I112: 169 | J112: 189 | K112: 1177
B113: KWO-343/SK | C113: VITI TCCEI 12.9 UNI 5931 BR. M20 X 140 | D113: 298 | F113: 208 | G113: 293 | H113: 298 | I113: 158 | J113: 309 | K113: 1266
B114: KWX-234/AH | C114: KIT REVISIONE CILINDRO M.W. | D114: 365 | F114: 213 | G114: 251 | H114: 365 | I114: 247 | J114: 234 | K114: 1310
B115: LBW-277/ME | C115: KIT COMPLETO GUARNIZIONI PER CILINDRO 80 | D115: 290 | F115: 201 | G115: 303 | H115: 290 | I115: 162 | J115: 171 | K115: 1127
B116: LCJ-304/BX | C116: KIT REVISIONE CILINDRO M.W. | D116: 242 | F116: 144 | G116: 353 | H116: 242 | I116: 68 | J116: 304 | K116: 1111
B117: NWC-213/WR | C117: KIT MAGNETE M.W. | D117: 330 | F117: 92 | G117: 253 | H117: 330 | I117: 183 | J117: 233 | K117: 1091
B118: OCI-162/XK | C118: KIT COMPLETO GUARNIZIONI CILINDRO 80 CMPC | D118: 294 | F118: 137 | G118: 168 | H118: 294 | I118: 145 | J118: 344 | K118: 1088
B119: OQJ-149/CP | C119: KIT COMPLETO GUARNIZIONI CILINDRO 125 | D119: 136 | F119: 154 | G119: 320 | H119: 136 | I119: 166 | J119: 131 | K119: 907
B120: OYZ-311/GH | C120: COPERCHIO ELEMENTO LOGICO LFA 25 KWA-7X/ | D120: 170 | F120: 189 | G120: 255 | H120: 170 | I120: 203 | J120: 317 | K120: 1134
B121: QBI-332/YQ | C121: FORCELLA FEMMINA CON SNODO SGS/M16X1.5 | D121: 312 | F121: 214 | G121: 122 | H121: 312 | I121: 271 | J121: 219 | K121: 1138
B122: RVA-370/MO | C122: ELEMENTO LOGICO LC 40 DB20E7X/ | D122: 339 | F122: 123 | G122: 252 | H122: 339 | I122: 166 | J122: 296 | K122: 1176
B123: RVG-263/JX | C123: SERVOVALVOLA CON ROTORE DINAMICO | D123: 311 | F123: 186 | G123: 338 | H123: 311 | I123: 92 | J123: 351 | K123: 1278
B124: SGY-295/PG | C124: PIGNONE SEMPL. 3/4 Z9" | D124: 340 | F124: 206 | G124: 185 | H124: 340 | I124: 265 | J124: 84 | K124: 1080
B125: SYA-341/BM | C125: PIGNONI SEMPLICI 3/4 Z21 | D125: 89 | F125: 155 | G125: 185 | H125: 89 | I125: 252 | J125: 319 | K125: 1000
B126: WTT-322/YR | C126: CURVA 45ｰ F.F. 1 ZINC." | D126: 344 | F126: 232 | G126: 181 | H126: 344 | I126: 271 | J126: 161 | K126: 1189
D128: =SUM(D103:D127) -> 6323 | F128: =SUM(F103:F127) -> 4144 | G128: =SUM(G103:G127) -> 6075 | H128: 6323 | I128: 4681 | J128: 5711 | K128: =SUM(K103:K127) -> 26934
F130: rim.iniz.le | G130: pezzi prelev | H130: rim.31/12
F131: =I30 -> 27640 | G131: =H95 -> 706 | H131: =F131-G131 -> 26934

Sheet Mister_x
B3: GIACENZE INIZIALI NEI VARI MAGAZZINI AL 01 GENNAIO 2014
B4: COD. ART. | C4: DESCRIZIONE ARTICOLO | D4: Q.TA' Messina | E4: Q.TA' Roma | F4: Q.TA' Firenze | G4: Q.TA' Milano | H4: Q.TA' Brescia | I4: Q.TA' totale
B5: BVD-350/EJ | C5: CARTUCCIA FILTRO DA 8 MICRON | D5: 200 | E5: 228 | F5: 307 | G5: 139 | H5: 354 | I5: =SUM(D5:H5) -> 1228
B6: DBY-128/GN | C6: AMMONIACA ANIDRA UN BOMBOLA DA KG.25 | D6: 167 | E6: 247 | F6: 232 | G6: 341 | H6: 366 | I6: =SUM(D6:H6) -> 1353
B7: EJJ-243/RK | C7: OLFLEX FD CLASSIC 810 7G0,5 | D7: 207 | E7: 354 | F7: 156 | G7: 194 | H7: 182 | I7: 1093
B8: EVW-340/RN | C8: OLFLEX FD CLASSIC 810 CY 4G0,5 | D8: 158 | E8: 369 | F8: 378 | G8: 150 | H8: 133 | I8: 1188
B9: FRF-171/ZE | C9: KIT GUARNIZIONI LC25...6X/LC25DB/DR-5X | D9: 119 | E9: 152 | F9: 153 | G9: 376 | H9: 208 | I9: 1008
B10: GTN-188/OI | C10: VALVOLA RITEGNO A PIASTRA Z1S 10 P2-3X/V | D10: 202 | E10: 215 | F10: 290 | G10: 209 | H10: 162 | I10: 1078
B11: HOU-335/QO | C11: VALVOLA DI RITEGNO PILOTATA Z2FS 16-3X/S2 | D11: 194 | E11: 249 | F11: 200 | G11: 168 | H11: 359 | I11: 1170
B12: HYM-126/TJ | C12: VALVOLA RIDUTTRICE DI PRESSIONE DA 40 MBAR | D12: 150 | E12: 215 | F12: 285 | G12: 234 | H12: 223 | I12: 1107
B13: IAB-347/TY | C13: REGOLATORE DI FLUSSO Z2FS 10-3-3 X/ V | D13: 154 | E13: 307 | F13: 174 | G13: 86 | H13: 118 | I13: 839
B14: IGF-330/RW | C14: RUOTE 65 SERIE RINFORZATA CON FRENO | D14: 157 | E14: 324 | F14: 338 | G14: 183 | H14: 199 | I14: 1201
B15: KWO-343/SK | C15: VITI TCCEI 12.9 UNI 5931 BR. M20 X 140 | D15: 208 | E15: 293 | F15: 326 | G15: 176 | H15: 339 | I15: 1342
B16: KWX-234/AH | C16: KIT REVISIONE CILINDRO M.W. | D16: 213 | E16: 251 | F16: 365 | G16: 247 | H16: 234 | I16: 1310
B17: LBW-277/ME | C17: KIT COMPLETO GUARNIZIONI PER CILINDRO 80 | D17: 209 | E17: 303 | F17: 290 | G17: 178 | H17: 171 | I17: 1151
B18: LCJ-304/BX | C18: KIT REVISIONE CILINDRO M.W. | D18: 160 | E18: 353 | F18: 242 | G18: 82 | H18: 320 | I18: 1157
B19: NWC-213/WR | C19: KIT MAGNETE M.W. | D19: 118 | E19: 253 | F19: 330 | G19: 189 | H19: 233 | I19: 1123
B20: OCI-162/XK | C20: KIT COMPLETO GUARNIZIONI CILINDRO 80 CMPC | D20: 137 | E20: 168 | F20: 306 | G20: 145 | H20: 362 | I20: 1118
B21: OQJ-149/CP | C21: KIT COMPLETO GUARNIZIONI CILINDRO 125 | D21: 178 | E21: 344 | F21: 150 | G21: 166 | H21: 131 | I21: 969
B22: OYZ-311/GH | C22: COPERCHIO ELEMENTO LOGICO LFA 25 KWA-7X/ | D22: 189 | E22: 269 | F22: 174 | G22: 203 | H22: 317 | I22: 1152
B23: QBI-332/YQ | C23: FORCELLA FEMMINA CON SNODO SGS/M16X1.5 | D23: 230 | E23: 128 | F23: 312 | G23: 271 | H23: 219 | I23: 1160
B24: RVA-370/MO | C24: ELEMENTO LOGICO LC 40 DB20E7X/ | D24: 143 | E24: 252 | F24: 339 | G24: 166 | H24: 310 | I24: 1210
B25: RVG-263/JX | C25: SERVOVALVOLA CON ROTORE DINAMICO | D25: 194 | E25: 338 | F25: 315 | G25: 108 | H25: 363 | I25: 1318
B26: SGY-295/PG | C26: PIGNONE SEMPL. 3/4 Z9" | D26: 206 | E26: 191 | F26: 346 | G26: 275 | H26: 94 | I26: 1112
B27: SYA-341/BM | C27: PIGNONI SEMPLICI 3/4 Z21 | D27: 155 | E27: 235 | F27: 89 | G27: 252 | H27: 319 | I27: 1050
B28: WTT-322/YR | C28: CURVA 45ｰ F.F. 1 ZINC." | D28: 232 | E28: 181 | F28: 344 | G28: 285 | H28: 161 | I28: 1203
B32: TABELLA ARTICOLI PRELEVATI NEL 2014 DAI DIVERSI MAGAZZINI
B33: COD. ART. | C33: DESCRIZIONE ARTICOLO | D33: SEDE | E33: Q.TA' prelevata | F33: DATA | G33: Q.TA' RESIDUA
B34: KWO-343/SK | C34: VITI TCCEI 12.9 UNI 5931 BR. M20 X 140 | D34: Brescia | E34: 18 | F34: 2014-01-15 | G34: =VLOOKUP(B34,$B$5:$H$28,MATCH(D34,TRIM(SUBSTITUTE($B$4:$H$4,"Q.TA'","")),0),0)-E34 -> 321
B35: SGY-295/PG | C35: PIGNONE SEMPL. 3/4 Z9" | D35: Milano | E35: 10 | F35: 2014-01-18 | G35: =VLOOKUP(B35,$B$5:$H$28,MATCH(D35,TRIM(SUBSTITUTE($B$4:$H$4,"Q.TA'","")),0),0)-E35 -> 265
B36: QBI-332/YQ | C36: FORCELLA FEMMINA CON SNODO SGS/M16X1.5 | D36: Roma | E36: 6 | F36: 2014-01-25 | G36: =VLOOKUP(B36,$B$5:$H$28,MATCH(D36,TRIM(SUBSTITUTE($B$4:$H$4,"Q.TA'","")),0),0)-E36 -> 122
B37: RVG-263/JX | C37: SERVOVALVOLA CON ROTORE DINAMICO | D37: Firenze | E37: 4 | F37: 2014-02-01 | G37: =VLOOKUP(B37,$B$5:$H$28,MATCH(D37,TRIM(SUBSTITUTE($B$4:$H$4,"Q.TA'","")),0),0)-E37 -> 311
B38: SGY-295/PG | C38: PIGNONE SEMPL. 3/4 Z9" | D38: Roma | E38: 6 | F38: 2014-02-09 | G38: =VLOOKUP(B38,$B$5:$H$28,MATCH(D38,TRIM(SUBSTITUTE($B$4:$H$4,"Q.TA'","")),0),0)-E38 -> 185
B39: OQJ-149/CP | C39: KIT COMPLETO GUARNIZIONI CILINDRO 125 | D39: Firenze | E39: 10 | F39: 2014-02-11 | G39: =VLOOKUP(B39,$B$5:$H$28,MATCH(D39,TRIM(SUBSTITUTE($B$4:$H$4,"Q.TA'","")),0),0)-E39 -> 140
B40: GTN-188/OI | C40: VALVOLA RITEGNO A PIASTRA Z1S 10 P2-3X/V | D40: Roma | E40: 4 | F40: 2014-02-16 | G40: =VLOOKUP(B40,$B$5:$H$28,MATCH(D40,TRIM(SUBSTITUTE($B$4:$H$4,"Q.TA'","")),0),0)-E40 -> 211
B41: KWO-343/SK | C41: VITI TCCEI 12.9 UNI 5931 BR. M20 X 140 | D41: Brescia | E41: 12 | F41: 2014-02-23 | G41: =VLOOKUP(B41,$B$5:$H$28,MATCH(D41,TRIM(SUBSTITUTE($B$4:$H$4,"Q.TA'","")),0),0)-E41 -> 327
B42: IAB-347/TY | C42: REGOLATORE DI FLUSSO Z2FS 10-3-3 X/ V | D42: Roma | E42: 4 | F42: 2014-03-01 | G42: =VLOOKUP(B42,$B$5:$H$28,MATCH(D42,TRIM(SUBSTITUTE($B$4:$H$4,"Q.TA'","")),0),0)-E42 -> 303
B43: SGY-295/PG | C43: PIGNONE SEMPL. 3/4 Z9" | D43: Firenze | E43: 6 | F43: 2014-03-05 | G43: =VLOOKUP(B43,$B$5:$H$28,MATCH(D43,TRIM(SUBSTITUTE($B$4:$H$4,"Q.TA'","")),0),0)-E43 -> 340
B44: OYZ-311/GH | C44: COPERCHIO ELEMENTO LOGICO LFA 25 KWA-7X/ | D44: Firenze | E44: 4 | F44: 2014-03-10 | G44: =VLOOKUP(B44,$B$5:$H$28,MATCH(D44,TRIM(SUBSTITUTE($B$4:$H$4,"Q.TA'","")),0),0)-E44 -> 170
B45: DBY-128/GN | C45: AMMONIACA ANIDRA UN BOMBOLA DA KG.25 | D45: Brescia | E45: 14 | F45: 2014-03-18 | G45: =VLOOKUP(B45,$B$5:$H$28,MATCH(D45,TRIM(SUBSTITUTE($B$4:$H$4,"Q.TA'","")),0),0)-E45 -> 352
B46: KWO-343/SK | C46: VITI TCCEI 12.9 UNI 5931 BR. M20 X 140 | D46: Firenze | E46: 16 | F46: 2014-03-23 | G46: =VLOOKUP(B46,$B$5:$H$28,MATCH(D46,TRIM(SUBSTITUTE($B$4:$H$4,"Q.TA'","")),0),0)-E46 -> 310
B47: LCJ-304/BX | C47: KIT REVISIONE CILINDRO M.W. | D47: Brescia | E47: 16 | F47: 2014-03-26 | G47: =VLOOKUP(B47,$B$5:$H$28,MATCH(D47,TRIM(SUBSTITUTE($B$4:$H$4,"Q.TA'","")),0),0)-E47 -> 304
B48: SYA-341/BM | C48: PIGNONI SEMPLICI 3/4 Z21 | D48: Roma | E48: 14 | F48: 2014-03-31 | G48: =VLOOKUP(B48,$B$5:$H$28,MATCH(D48,TRIM(SUBSTITUTE($B$4:$H$4,"Q.TA'","")),0),0)-E48 -> 221
B49: IGF-330/RW | C49: RUOTE 65 SERIE RINFORZATA CON FRENO | D49: Brescia | E49: 10 | F49: 2014-04-06 | G49: =VLOOKUP(B49,$B$5:$H$28,MATCH(D49,TRIM(SUBSTITUTE($B$4:$H$4,"Q.TA'","")),0),0)-E49 -> 189
B50: BVD-350/EJ | C50: CARTUCCIA FILTRO DA 8 MICRON | D50: Milano | E50: 4 | F50: 2014-04-09 | G50: =VLOOKUP(B50,$B$5:$H$28,MATCH(D50,TRIM(SUBSTITUTE($B$4:$H$4,"Q.TA'","")),0),0)-E50 -> 135
B51: EVW-340/RN | C51: OLFLEX FD CLASSIC 810 CY 4G0,5 | D51: Firenze | E51: 8 | F51: 2014-04-16 | G51: =VLOOKUP(B51,$B$5:$H$28,MATCH(D51,TRIM(SUBSTITUTE($B$4:$H$4,"Q.TA'","")),0),0)-E51 -> 370
B52: NWC-213/WR | C52: KIT MAGNETE M.W. | D52: Milano | E52: 6 | F52: 2014-04-23 | G52: =VLOOKUP(B52,$B$5:$H$28,MATCH(D52,TRIM(SUBSTITUTE($B$4:$H$4,"Q.TA'","")),0),0)-E52 -> 183
B53: WTT-322/YR | C53: CURVA 45ｰ F.F. 1 ZINC." | D53: Milano | E53: 14 | F53: 2014-04-30 | G53: =VLOOKUP(B53,$B$5:$H$28,MATCH(D53,TRIM(SUBSTITUTE($B$4:$H$4,"Q.TA'","")),0),0)-E53 -> 271
B54: NWC-213/WR | C54: KIT MAGNETE M.W. | D54: Messina | E54: 16 | F54: 2014-05-07 | G54: =VLOOKUP(B54,$B$5:$H$28,MATCH(D54,TRIM(SUBSTITUTE($B$4:$H$4,"Q.TA'","")),0),0)-E54 -> 102
B55: SYA-341/BM | C55: PIGNONI SEMPLICI 3/4 Z21 | D55: Roma | E55: 18 | F55: 2014-05-12 | G55: =VLOOKUP(B55,$B$5:$H$28,MATCH(D55,TRIM(SUBSTITUTE($B$4:$H$4,"Q.TA'","")),0),0)-E55 -> 217
B56: OQJ-149/CP | C56: KIT COMPLETO GUARNIZIONI CILINDRO 125 | D56: Roma | E56: 18 | F56: 2014-05-20 | G56: =VLOOKUP(B56,$B$5:$H$28,MATCH(D56,TRIM(SUBSTITUTE($B$4:$H$4,"Q.TA'","")),0),0)-E56 -> 326
B57: SYA-341/BM | C57: PIGNONI SEMPLICI 3/4 Z21 | D57: Roma | E57: 18 | F57: 2014-05-27 | G57: =VLOOKUP(B57,$B$5:$H$28,MATCH(D57,TRIM(SUBSTITUTE($B$4:$H$4,"Q.TA'","")),0),0)-E57 -> 217
B58: OCI-162/XK | C58: KIT COMPLETO GUARNIZIONI CILINDRO 80 CMPC | D58: Brescia | E58: 18 | F58: 2014-05-30 | G58: =VLOOKUP(B58,$B$5:$H$28,MATCH(D58,TRIM(SUBSTITUTE($B$4:$H$4,"Q.TA'","")),0),0)-E58 -> 344
B59: HYM-126/TJ | C59: VALVOLA RIDUTTRICE DI PRESSIONE DA 40 MBAR | D59: Milano | E59: 14 | F59: 2014-06-05 | G59: =VLOOKUP(B59,$B$5:$H$28,MATCH(D59,TRIM(SUBSTITUTE($B$4:$H$4,"Q.TA'","")),0),0)-E59 -> 220
B60: LCJ-304/BX | C60: KIT REVISIONE CILINDRO M.W. | D60: Milano | E60: 10 | F60: 2014-06-11 | G60: =VLOOKUP(B60,$B$5:$H$28,MATCH(D60,TRIM(SUBSTITUTE($B$4:$H$4,"Q.TA'","")),0),0)-E60 -> 72
B61: RVG-263/JX | C61: SERVOVALVOLA CON ROTORE DINAMICO | D61: Messina | E61: 8 | F61: 2014-06-17 | G61: =VLOOKUP(B61,$B$5:$H$28,MATCH(D61,TRIM(SUBSTITUTE($B$4:$H$4,"Q.TA'","")),0),0)-E61 -> 186
B62: OQJ-149/CP | C62: KIT COMPLETO GUARNIZIONI CILINDRO 125 | D62: Messina | E62: 16 | F62: 2014-06-25 | G62: =VLOOKUP(B62,$B$5:$H$28,MATCH(D62,TRIM(SUBSTITUTE($B$4:$H$4,"Q.TA'","")),0),0)-E62 -> 162
B63: DBY-128/GN | C63: AMMONIACA ANIDRA UN BOMBOLA DA KG.25 | D63: Roma | E63: 8 | F63: 2014-06-28 | G63: =VLOOKUP(B63,$B$5:$H$28,MATCH(D63,TRIM(SUBSTITUTE($B$4:$H$4,"Q.TA'","")),0),0)-E63 -> 239
B64: SGY-295/PG | C64: PIGNONE SEMPL. 3/4 Z9" | D64: Brescia | E64: 10 | F64: 2014-06-30 | G64: =VLOOKUP(B64,$B$5:$H$28,MATCH(D64,TRIM(SUBSTITUTE($B$4:$H$4,"Q.TA'","")),0),0)-E64 -> 84
B65: NWC-213/WR | C65: KIT MAGNETE M.W. | D65: Messina | E65: 10 | F65: 2014-07-07 | G65: =VLOOKUP(B65,$B$5:$H$28,MATCH(D65,TRIM(SUBSTITUTE($B$4:$H$4,"Q.TA'","")),0),0)-E65 -> 108
B66: FRF-171/ZE | C66: KIT GUARNIZIONI LC25...6X/LC25DB/DR-5X | D66: Firenze | E66: 12 | F66: 2014-07-10 | G66: =VLOOKUP(B66,$B$5:$H$28,MATCH(D66,TRIM(SUBSTITUTE($B$4:$H$4,"Q.TA'","")),0),0)-E66 -> 141
B67: OCI-162/XK | C67: KIT COMPLETO GUARNIZIONI CILINDRO 80 CMPC | D67: Firenze | E67: 12 | F67: 2014-07-18 | G67: =VLOOKUP(B67,$B$5:$H$28,MATCH(D67,TRIM(SUBSTITUTE($B$4:$H$4,"Q.TA'","")),0),0)-E67 -> 294
B68: GTN-188/OI | C68: VALVOLA RITEGNO A PIASTRA Z1S 10 P2-3X/V | D68: Milano | E68: 16 | F68: 2014-07-24 | G68: =VLOOKUP(B68,$B$5:$H$28,MATCH(D68,TRIM(SUBSTITUTE($B$4:$H$4,"Q.TA'","")),0),0)-E68 -> 193
B69: RVA-370/MO | C69: ELEMENTO LOGICO LC 40 DB20E7X/ | D69: Messina | E69: 6 | F69: 2014-07-29 | G69: =VLOOKUP(B69,$B$5:$H$28,MATCH(D69,TRIM(SUBSTITUTE($B$4:$H$4,"Q.TA'","")),0),0)-E69 -> 137
B70: EJJ-243/RK | C70: OLFLEX FD CLASSIC 810 7G0,5 | D70: Roma | E70: 16 | F70: 2014-08-06 | G70: =VLOOKUP(B70,$B$5:$H$28,MATCH(D70,TRIM(SUBSTITUTE($B$4:$H$4,"Q.TA'","")),0),0)-E70 -> 338
B71: HYM-126/TJ | C71: VALVOLA RIDUTTRICE DI PRESSIONE DA 40 MBAR | D71: Brescia | E71: 14 | F71: 2014-08-13 | G71: =VLOOKUP(B71,$B$5:$H$28,MATCH(D71,TRIM(SUBSTITUTE($B$4:$H$4,"Q.TA'","")),0),0)-E71 -> 209
B72: LBW-277/ME | C72: KIT COMPLETO GUARNIZIONI PER CILINDRO 80 | D72: Milano | E72: 16 | F72: 2014-08-19 | G72: =VLOOKUP(B72,$B$5:$H$28,MATCH(D72,TRIM(SUBSTITUTE($B$4:$H$4,"Q.TA'","")),0),0)-E72 -> 162
B73: RVG-263/JX | C73: SERVOVALVOLA CON ROTORE DINAMICO | D73: Milano | E73: 16 | F73: 2014-08-22 | G73: =VLOOKUP(B73,$B$5:$H$28,MATCH(D73,TRIM(SUBSTITUTE($B$4:$H$4,"Q.TA'","")),0),0)-E73 -> 92
B74: OQJ-149/CP | C74: KIT COMPLETO GUARNIZIONI CILINDRO 125 | D74: Roma | E74: 6 | F74: 2014-08-25 | G74: =VLOOKUP(B74,$B$5:$H$28,MATCH(D74,TRIM(SUBSTITUTE($B$4:$H$4,"Q.TA'","")),0),0)-E74 -> 338
B75: RVA-370/MO | C75: ELEMENTO LOGICO LC 40 DB20E7X/ | D75: Brescia | E75: 14 | F75: 2014-08-30 | G75: =VLOOKUP(B75,$B$5:$H$28,MATCH(D75,TRIM(SUBSTITUTE($B$4:$H$4,"Q.TA'","")),0),0)-E75 -> 296
B76: DBY-128/GN | C76: AMMONIACA ANIDRA UN BOMBOLA DA KG.25 | D76: Firenze | E76: 12 | F76: 2014-09-02 | G76: =VLOOKUP(B76,$B$5:$H$28,MATCH(D76,TRIM(SUBSTITUTE($B$4:$H$4,"Q.TA'","")),0),0)-E76 -> 220
B77: LCJ-304/BX | C77: KIT REVISIONE CILINDRO M.W. | D77: Milano | E77: 4 | F77: 2014-09-08 | G77: =VLOOKUP(B77,$B$5:$H$28,MATCH(D77,TRIM(SUBSTITUTE($B$4:$H$4,"Q.TA'","")),0),0)-E77 -> 78
B78: LCJ-304/BX | C78: KIT REVISIONE CILINDRO M.W. | D78: Messina | E78: 16 | F78: 2014-09-10 | G78: =VLOOKUP(B78,$B$5:$H$28,MATCH(D78,TRIM(SUBSTITUTE($B$4:$H$4,"Q.TA'","")),0),0)-E78 -> 144
B79: GTN-188/OI | C79: VALVOLA RITEGNO A PIASTRA Z1S 10 P2-3X/V | D79: Messina | E79: 18 | F79: 2014-09-14 | G79: =VLOOKUP(B79,$B$5:$H$28,MATCH(D79,TRIM(SUBSTITUTE($B$4:$H$4,"Q.TA'","")),0),0)-E79 -> 184
B80: OYZ-311/GH | C80: COPERCHIO ELEMENTO LOGICO LFA 25 KWA-7X/ | D80: Roma | E80: 14 | F80: 2014-09-17 | G80: =VLOOKUP(B80,$B$5:$H$28,MATCH(D80,TRIM(SUBSTITUTE($B$4:$H$4,"Q.TA'","")),0),0)-E80 -> 255
B81: QBI-332/YQ | C81: FORCELLA FEMMINA CON SNODO SGS/M16X1.5 | D81: Messina | E81: 16 | F81: 2014-09-22 | G81: =VLOOKUP(B81,$B$5:$H$28,MATCH(D81,TRIM(SUBSTITUTE($B$4:$H$4,"Q.TA'","")),0),0)-E81 -> 214
B82: OQJ-149/CP | C82: KIT COMPLETO GUARNIZIONI CILINDRO 125 | D82: Messina | E82: 8 | F82: 2014-09-28 | G82: =VLOOKUP(B82,$B$5:$H$28,MATCH(D82,TRIM(SUBSTITUTE($B$4:$H$4,"Q.TA'","")),0),0)-E82 -> 170
B83: HOU-335/QO | C83: VALVOLA DI RITEGNO PILOTATA Z2FS 16-3X/S2 | D83: Roma | E83: 12 | F83: 2014-09-30 | G83: =VLOOKUP(B83,$B$5:$H$28,MATCH(D83,TRIM(SUBSTITUTE($B$4:$H$4,"Q.TA'","")),0),0)-E83 -> 237
B84: RVG-263/JX | C84: SERVOVALVOLA CON ROTORE DINAMICO | D84: Brescia | E84: 12 | F84: 2014-10-08 | G84: =VLOOKUP(B84,$B$5:$H$28,MATCH(D84,TRIM(SUBSTITUTE($B$4:$H$4,"Q.TA'","")),0),0)-E84 -> 351
B85: FRF-171/ZE | C85: KIT GUARNIZIONI LC25...6X/LC25DB/DR-5X | D85: Firenze | E85: 18 | F85: 2014-10-16 | G85: =VLOOKUP(B85,$B$5:$H$28,MATCH(D85,TRIM(SUBSTITUTE($B$4:$H$4,"Q.TA'","")),0),0)-E85 -> 135
B86: FRF-171/ZE | C86: KIT GUARNIZIONI LC25...6X/LC25DB/DR-5X | D86: Brescia | E86: 16 | F86: 2014-10-22 | G86: =VLOOKUP(B86,$B$5:$H$28,MATCH(D86,TRIM(SUBSTITUTE($B$4:$H$4,"Q.TA'","")),0),0)-E86 -> 192
B87: KWO-343/SK | C87: VITI TCCEI 12.9 UNI 5931 BR. M20 X 140 | D87: Firenze | E87: 12 | F87: 2014-10-28 | G87: =VLOOKUP(B87,$B$5:$H$28,MATCH(D87,TRIM(SUBSTITUTE($B$4:$H$4,"Q.TA'","")),0),0)-E87 -> 314
B88: IGF-330/RW | C88: RUOTE 65 SERIE RINFORZATA CON FRENO | D88: Milano | E88: 14 | F88: 2014-11-01 | G88: =VLOOKUP(B88,$B$5:$H$28,MATCH(D88,TRIM(SUBSTITUTE($B$4:$H$4,"Q.TA'","")),0),0)-E88 -> 169
B89: EVW-340/RN | C89: OLFLEX FD CLASSIC 810 CY 4G0,5 | D89: Brescia | E89: 8 | F89: 2014-11-09 | G89: =VLOOKUP(B89,$B$5:$H$28,MATCH(D89,TRIM(SUBSTITUTE($B$4:$H$4,"Q.TA'","")),0),0)-E89 -> 125
B90: OQJ-149/CP | C90: KIT COMPLETO GUARNIZIONI CILINDRO 125 | D90: Firenze | E90: 4 | F90: 2014-11-13 | G90: =VLOOKUP(B90,$B$5:$H$28,MATCH(D90,TRIM(SUBSTITUTE($B$4:$H$4,"Q.TA'","")),0),0)-E90 -> 146
B91: LBW-277/ME | C91: KIT COMPLETO GUARNIZIONI PER CILINDRO 80 | D91: Messina | E91: 8 | F91: 2014-11-20 | G91: =VLOOKUP(B91,$B$5:$H$28,MATCH(D91,TRIM(SUBSTITUTE($B$4:$H$4,"Q.TA'","")),0),0)-E91 -> 201
B92: KWO-343/SK | C92: VITI TCCEI 12.9 UNI 5931 BR. M20 X 140 | D92: Milano | E92: 18 | F92: 2014-11-26 | G92: =VLOOKUP(B92,$B$5:$H$28,MATCH(D92,TRIM(SUBSTITUTE($B$4:$H$4,"Q.TA'","")),0),0)-E92 -> 158
B93: RVA-370/MO | C93: ELEMENTO LOGICO LC 40 DB20E7X/ | D93: Messina | E93: 14 | F93: 2014-12-04 | G93: =VLOOKUP(B93,$B$5:$H$28,MATCH(D93,TRIM(SUBSTITUTE($B$4:$H$4,"Q.TA'","")),0),0)-E93 -> 129
B94: BVD-350/EJ | C94: CARTUCCIA FILTRO DA 8 MICRON | D94: Brescia | E94: 4 | F94: 2014-12-12 | G94: =VLOOKUP(B94,$B$5:$H$28,MATCH(D94,TRIM(SUBSTITUTE($B$4:$H$4,"Q.TA'","")),0),0)-E94 -> 350
C97: Seleziona il Magazzino : | D97: Roma
B101: GIACENZE FINALI NEL MAGAZZINO SELEZIONATO AL 31 DICEMBRE 2014
B102: COD. ART. | C102: DESCRIZIONE ARTICOLO | D102: ="Q.TA' " &D97 -> Q.TA' Roma
B103: BVD-350/EJ | C103: CARTUCCIA FILTRO DA 8 MICRON | D103: =VLOOKUP(B103,$B$5:$H$28,MATCH($D$97,TRIM(SUBSTITUTE($B$4:$H$4,"Q.TA'","")),0),0)-SUMPRODUCT(($B$34:$B$94=B103)*($D$34:$D$94=$D$97)*($E$34:$E$94)) -> 228
B104: DBY-128/GN | C104: AMMONIACA ANIDRA UN BOMBOLA DA KG.25 | D104: =VLOOKUP(B104,$B$5:$H$28,MATCH($D$97,TRIM(SUBSTITUTE($B$4:$H$4,"Q.TA'","")),0),0)-SUMPRODUCT(($B$34:$B$94=B104)*($D$34:$D$94=$D$97)*($E$34:$E$94)) -> 239
B105: EJJ-243/RK | C105: OLFLEX FD CLASSIC 810 7G0,5 | D105: =VLOOKUP(B105,$B$5:$H$28,MATCH($D$97,TRIM(SUBSTITUTE($B$4:$H$4,"Q.TA'","")),0),0)-SUMPRODUCT(($B$34:$B$94=B105)*($D$34:$D$94=$D$97)*($E$34:$E$94)) -> 338
B106: EVW-340/RN | C106: OLFLEX FD CLASSIC 810 CY 4G0,5 | D106: =VLOOKUP(B106,$B$5:$H$28,MATCH($D$97,TRIM(SUBSTITUTE($B$4:$H$4,"Q.TA'","")),0),0)-SUMPRODUCT(($B$34:$B$94=B106)*($D$34:$D$94=$D$97)*($E$34:$E$94)) -> 369
B107: FRF-171/ZE | C107: KIT GUARNIZIONI LC25...6X/LC25DB/DR-5X | D107: =VLOOKUP(B107,$B$5:$H$28,MATCH($D$97,TRIM(SUBSTITUTE($B$4:$H$4,"Q.TA'","")),0),0)-SUMPRODUCT(($B$34:$B$94=B107)*($D$34:$D$94=$D$97)*($E$34:$E$94)) -> 152
B108: GTN-188/OI | C108: VALVOLA RITEGNO A PIASTRA Z1S 10 P2-3X/V | D108: =VLOOKUP(B108,$B$5:$H$28,MATCH($D$97,TRIM(SUBSTITUTE($B$4:$H$4,"Q.TA'","")),0),0)-SUMPRODUCT(($B$34:$B$94=B108)*($D$34:$D$94=$D$97)*($E$34:$E$94)) -> 211
B109: HOU-335/QO | C109: VALVOLA DI RITEGNO PILOTATA Z2FS 16-3X/S2 | D109: =VLOOKUP(B109,$B$5:$H$28,MATCH($D$97,TRIM(SUBSTITUTE($B$4:$H$4,"Q.TA'","")),0),0)-SUMPRODUCT(($B$34:$B$94=B109)*($D$34:$D$94=$D$97)*($E$34:$E$94)) -> 237
B110: HYM-126/TJ | C110: VALVOLA RIDUTTRICE DI PRESSIONE DA 40 MBAR | D110: =VLOOKUP(B110,$B$5:$H$28,MATCH($D$97,TRIM(SUBSTITUTE($B$4:$H$4,"Q.TA'","")),0),0)-SUMPRODUCT(($B$34:$B$94=B110)*($D$34:$D$94=$D$97)*($E$34:$E$94)) -> 215
B111: IAB-347/TY | C111: REGOLATORE DI FLUSSO Z2FS 10-3-3 X/ V | D111: =VLOOKUP(B111,$B$5:$H$28,MATCH($D$97,TRIM(SUBSTITUTE($B$4:$H$4,"Q.TA'","")),0),0)-SUMPRODUCT(($B$34:$B$94=B111)*($D$34:$D$94=$D$97)*($E$34:$E$94)) -> 303
B112: IGF-330/RW | C112: RUOTE 65 SERIE RINFORZATA CON FRENO | D112: =VLOOKUP(B112,$B$5:$H$28,MATCH($D$97,TRIM(SUBSTITUTE($B$4:$H$4,"Q.TA'","")),0),0)-SUMPRODUCT(($B$34:$B$94=B112)*($D$34:$D$94=$D$97)*($E$34:$E$94)) -> 324
B113: KWO-343/SK | C113: VITI TCCEI 12.9 UNI 5931 BR. M20 X 140 | D113: =VLOOKUP(B113,$B$5:$H$28,MATCH($D$97,TRIM(SUBSTITUTE($B$4:$H$4,"Q.TA'","")),0),0)-SUMPRODUCT(($B$34:$B$94=B113)*($D$34:$D$94=$D$97)*($E$34:$E$94)) -> 293
B114: KWX-234/AH | C114: KIT REVISIONE CILINDRO M.W. | D114: =VLOOKUP(B114,$B$5:$H$28,MATCH($D$97,TRIM(SUBSTITUTE($B$4:$H$4,"Q.TA'","")),0),0)-SUMPRODUCT(($B$34:$B$94=B114)*($D$34:$D$94=$D$97)*($E$34:$E$94)) -> 251
B115: LBW-277/ME | C115: KIT COMPLETO GUARNIZIONI PER CILINDRO 80 | D115: =VLOOKUP(B115,$B$5:$H$28,MATCH($D$97,TRIM(SUBSTITUTE($B$4:$H$4,"Q.TA'","")),0),0)-SUMPRODUCT(($B$34:$B$94=B115)*($D$34:$D$94=$D$97)*($E$34:$E$94)) -> 303
B116: LCJ-304/BX | C116: KIT REVISIONE CILINDRO M.W. | D116: =VLOOKUP(B116,$B$5:$H$28,MATCH($D$97,TRIM(SUBSTITUTE($B$4:$H$4,"Q.TA'","")),0),0)-SUMPRODUCT(($B$34:$B$94=B116)*($D$34:$D$94=$D$97)*($E$34:$E$94)) -> 353
B117: NWC-213/WR | C117: KIT MAGNETE M.W. | D117: =VLOOKUP(B117,$B$5:$H$28,MATCH($D$97,TRIM(SUBSTITUTE($B$4:$H$4,"Q.TA'","")),0),0)-SUMPRODUCT(($B$34:$B$94=B117)*($D$34:$D$94=$D$97)*($E$34:$E$94)) -> 253
B118: OCI-162/XK | C118: KIT COMPLETO GUARNIZIONI CILINDRO 80 CMPC | D118: =VLOOKUP(B118,$B$5:$H$28,MATCH($D$97,TRIM(SUBSTITUTE($B$4:$H$4,"Q.TA'","")),0),0)-SUMPRODUCT(($B$34:$B$94=B118)*($D$34:$D$94=$D$97)*($E$34:$E$94)) -> 168
B119: OQJ-149/CP | C119: KIT COMPLETO GUARNIZIONI CILINDRO 125 | D119: =VLOOKUP(B119,$B$5:$H$28,MATCH($D$97,TRIM(SUBSTITUTE($B$4:$H$4,"Q.TA'","")),0),0)-SUMPRODUCT(($B$34:$B$94=B119)*($D$34:$D$94=$D$97)*($E$34:$E$94)) -> 320
B120: OYZ-311/GH | C120: COPERCHIO ELEMENTO LOGICO LFA 25 KWA-7X/ | D120: =VLOOKUP(B120,$B$5:$H$28,MATCH($D$97,TRIM(SUBSTITUTE($B$4:$H$4,"Q.TA'","")),0),0)-SUMPRODUCT(($B$34:$B$94=B120)*($D$34:$D$94=$D$97)*($E$34:$E$94)) -> 255
B121: QBI-332/YQ | C121: FORCELLA FEMMINA CON SNODO SGS/M16X1.5 | D121: =VLOOKUP(B121,$B$5:$H$28,MATCH($D$97,TRIM(SUBSTITUTE($B$4:$H$4,"Q.TA'","")),0),0)-SUMPRODUCT(($B$34:$B$94=B121)*($D$34:$D$94=$D$97)*($E$34:$E$94)) -> 122
B122: RVA-370/MO | C122: ELEMENTO LOGICO LC 40 DB20E7X/ | D122: =VLOOKUP(B122,$B$5:$H$28,MATCH($D$97,TRIM(SUBSTITUTE($B$4:$H$4,"Q.TA'","")),0),0)-SUMPRODUCT(($B$34:$B$94=B122)*($D$34:$D$94=$D$97)*($E$34:$E$94)) -> 252
B123: RVG-263/JX | C123: SERVOVALVOLA CON ROTORE DINAMICO | D123: =VLOOKUP(B123,$B$5:$H$28,MATCH($D$97,TRIM(SUBSTITUTE($B$4:$H$4,"Q.TA'","")),0),0)-SUMPRODUCT(($B$34:$B$94=B123)*($D$34:$D$94=$D$97)*($E$34:$E$94)) -> 338
B124: SGY-295/PG | C124: PIGNONE SEMPL. 3/4 Z9" | D124: =VLOOKUP(B124,$B$5:$H$28,MATCH($D$97,TRIM(SUBSTITUTE($B$4:$H$4,"Q.TA'","")),0),0)-SUMPRODUCT(($B$34:$B$94=B124)*($D$34:$D$94=$D$97)*($E$34:$E$94)) -> 185
B125: SYA-341/BM | C125: PIGNONI SEMPLICI 3/4 Z21 | D125: =VLOOKUP(B125,$B$5:$H$28,MATCH($D$97,TRIM(SUBSTITUTE($B$4:$H$4,"Q.TA'","")),0),0)-SUMPRODUCT(($B$34:$B$94=B125)*($D$34:$D$94=$D$97)*($E$34:$E$94)) -> 185
B126: WTT-322/YR | C126: CURVA 45ｰ F.F. 1 ZINC." | D126: =VLOOKUP(B126,$B$5:$H$28,MATCH($D$97,TRIM(SUBSTITUTE($B$4:$H$4,"Q.TA'","")),0),0)-SUMPRODUCT(($B$34:$B$94=B126)*($D$34:$D$94=$D$97)*($E$34:$E$94)) -> 181

Sheet Ninai
B3: GIACENZE INIZIALI NEI VARI MAGAZZINI AL 01 GENNAIO 2014
B4: COD. ART. | C4: DESCRIZIONE ARTICOLO | D4: Q.TA' Messina | E4: Q.TA' Roma | F4: Q.TA' Firenze | G4: Q.TA' Milano | H4: Q.TA' Brescia | I4: Q.TA' totale
B5: BVD-350/EJ | C5: CARTUCCIA FILTRO DA 8 MICRON | D5: 200 | E5: 228 | F5: 307 | G5: 139 | H5: 354 | I5: =SUM(D5:H5) -> 1228
B6: DBY-128/GN | C6: AMMONIACA ANIDRA UN BOMBOLA DA KG.25 | D6: 167 | E6: 247 | F6: 232 | G6: 341 | H6: 366 | I6: =SUM(D6:H6) -> 1353
B7: EJJ-243/RK | C7: OLFLEX FD CLASSIC 810 7G0,5 | D7: 207 | E7: 354 | F7: 156 | G7: 194 | H7: 182 | I7: 1093
B8: EVW-340/RN | C8: OLFLEX FD CLASSIC 810 CY 4G0,5 | D8: 158 | E8: 369 | F8: 378 | G8: 150 | H8: 133 | I8: 1188
B9: FRF-171/ZE | C9: KIT GUARNIZIONI LC25...6X/LC25DB/DR-5X | D9: 119 | E9: 152 | F9: 153 | G9: 376 | H9: 208 | I9: 1008
B10: GTN-188/OI | C10: VALVOLA RITEGNO A PIASTRA Z1S 10 P2-3X/V | D10: 202 | E10: 215 | F10: 290 | G10: 209 | H10: 162 | I10: 1078
B11: HOU-335/QO | C11: VALVOLA DI RITEGNO PILOTATA Z2FS 16-3X/S2 | D11: 194 | E11: 249 | F11: 200 | G11: 168 | H11: 359 | I11: 1170
B12: HYM-126/TJ | C12: VALVOLA RIDUTTRICE DI PRESSIONE DA 40 MBAR | D12: 150 | E12: 215 | F12: 285 | G12: 234 | H12: 223 | I12: 1107
B13: IAB-347/TY | C13: REGOLATORE DI FLUSSO Z2FS 10-3-3 X/ V | D13: 154 | E13: 307 | F13: 174 | G13: 86 | H13: 118 | I13: 839
B14: IGF-330/RW | C14: RUOTE 65 SERIE RINFORZATA CON FRENO | D14: 157 | E14: 324 | F14: 338 | G14: 183 | H14: 199 | I14: 1201
B15: KWO-343/SK | C15: VITI TCCEI 12.9 UNI 5931 BR. M20 X 140 | D15: 208 | E15: 293 | F15: 326 | G15: 176 | H15: 339 | I15: 1342
B16: KWX-234/AH | C16: KIT REVISIONE CILINDRO M.W. | D16: 213 | E16: 251 | F16: 365 | G16: 247 | H16: 234 | I16: 1310
B17: LBW-277/ME | C17: KIT COMPLETO GUARNIZIONI PER CILINDRO 80 | D17: 209 | E17: 303 | F17: 290 | G17: 178 | H17: 171 | I17: 1151
B18: LCJ-304/BX | C18: KIT REVISIONE CILINDRO M.W. | D18: 160 | E18: 353 | F18: 242 | G18: 82 | H18: 320 | I18: 1157
B19: NWC-213/WR | C19: KIT MAGNETE M.W. | D19: 118 | E19: 253 | F19: 330 | G19: 189 | H19: 233 | I19: 1123
B20: OCI-162/XK | C20: KIT COMPLETO GUARNIZIONI CILINDRO 80 CMPC | D20: 137 | E20: 168 | F20: 306 | G20: 145 | H20: 362 | I20: 1118
B21: OQJ-149/CP | C21: KIT COMPLETO GUARNIZIONI CILINDRO 125 | D21: 178 | E21: 344 | F21: 150 | G21: 166 | H21: 131 | I21: 969
B22: OYZ-311/GH | C22: COPERCHIO ELEMENTO LOGICO LFA 25 KWA-7X/ | D22: 189 | E22: 269 | F22: 174 | G22: 203 | H22: 317 | I22: 1152
B23: QBI-332/YQ | C23: FORCELLA FEMMINA CON SNODO SGS/M16X1.5 | D23: 230 | E23: 128 | F23: 312 | G23: 271 | H23: 219 | I23: 1160
B24: RVA-370/MO | C24: ELEMENTO LOGICO LC 40 DB20E7X/ | D24: 143 | E24: 252 | F24: 339 | G24: 166 | H24: 310 | I24: 1210
B25: RVG-263/JX | C25: SERVOVALVOLA CON ROTORE DINAMICO | D25: 194 | E25: 338 | F25: 315 | G25: 108 | H25: 363 | I25: 1318
B26: SGY-295/PG | C26: PIGNONE SEMPL. 3/4 Z9" | D26: 206 | E26: 191 | F26: 346 | G26: 275 | H26: 94 | I26: 1112
B27: SYA-341/BM | C27: PIGNONI SEMPLICI 3/4 Z21 | D27: 155 | E27: 235 | F27: 89 | G27: 252 | H27: 319 | I27: 1050
B28: WTT-322/YR | C28: CURVA 45ｰ F.F. 1 ZINC." | D28: 232 | E28: 181 | F28: 344 | G28: 285 | H28: 161 | I28: 1203
B32: TABELLA ARTICOLI PRELEVATI NEL 2014 DAI DIVERSI MAGAZZINI
B33: COD. ART. | C33: DESCRIZIONE ARTICOLO | D33: SEDE | E33: Q.TA' prelevata | F33: DATA | G33: Q.TA' RESIDUA
B34: KWO-343/SK | C34: VITI TCCEI 12.9 UNI 5931 BR. M20 X 140 | D34: Brescia | E34: 18 | F34: 2014-01-15 | G34: =SUMPRODUCT(($B$5:$B$28=B34)*($D$4:$H$4="Q.TA' "&D34)*$D$5:$H$28)-SUMPRODUCT($E$34:$E$94*($B$34:$B$94=B34)*($D$34:$D$94=D34)*($F$34:$F$94<=F34)) -> 321
B35: SGY-295/PG | C35: PIGNONE SEMPL. 3/4 Z9" | D35: Milano | E35: 10 | F35: 2014-01-18 | G35: =SUMPRODUCT(($B$5:$B$28=B35)*($D$4:$H$4="Q.TA' "&D35)*$D$5:$H$28)-SUMPRODUCT($E$34:$E$94*($B$34:$B$94=B35)*($D$34:$D$94=D35)*($F$34:$F$94<=F35)) -> 265
B36: QBI-332/YQ | C36: FORCELLA FEMMINA CON SNODO SGS/M16X1.5 | D36: Roma | E36: 6 | F36: 2014-01-25 | G36: 122
B37: RVG-263/JX | C37: SERVOVALVOLA CON ROTORE DINAMICO | D37: Firenze | E37: 4 | F37: 2014-02-01 | G37: 311
B38: SGY-295/PG | C38: PIGNONE SEMPL. 3/4 Z9" | D38: Roma | E38: 6 | F38: 2014-02-09 | G38: 185
B39: OQJ-149/CP | C39: KIT COMPLETO GUARNIZIONI CILINDRO 125 | D39: Firenze | E39: 10 | F39: 2014-02-11 | G39: 140
B40: GTN-188/OI | C40: VALVOLA RITEGNO A PIASTRA Z1S 10 P2-3X/V | D40: Roma | E40: 4 | F40: 2014-02-16 | G40: 211
B41: KWO-343/SK | C41: VITI TCCEI 12.9 UNI 5931 BR. M20 X 140 | D41: Brescia | E41: 12 | F41: 2014-02-23 | G41: 309
B42: IAB-347/TY | C42: REGOLATORE DI FLUSSO Z2FS 10-3-3 X/ V | D42: Roma | E42: 4 | F42: 2014-03-01 | G42: 303
B43: SGY-295/PG | C43: PIGNONE SEMPL. 3/4 Z9" | D43: Firenze | E43: 6 | F43: 2014-03-05 | G43: 340
B44: OYZ-311/GH | C44: COPERCHIO ELEMENTO LOGICO LFA 25 KWA-7X/ | D44: Firenze | E44: 4 | F44: 2014-03-10 | G44: 170
B45: DBY-128/GN | C45: AMMONIACA ANIDRA UN BOMBOLA DA KG.25 | D45: Brescia | E45: 14 | F45: 2014-03-18 | G45: 352
B46: KWO-343/SK | C46: VITI TCCEI 12.9 UNI 5931 BR. M20 X 140 | D46: Firenze | E46: 16 | F46: 2014-03-23 | G46: 310
B47: LCJ-304/BX | C47: KIT REVISIONE CILINDRO M.W. | D47: Brescia | E47: 16 | F47: 2014-03-26 | G47: 304
B48: SYA-341/BM | C48: PIGNONI SEMPLICI 3/4 Z21 | D48: Roma | E48: 14 | F48: 2014-03-31 | G48: 221
B49: IGF-330/RW | C49: RUOTE 65 SERIE RINFORZATA CON FRENO | D49: Brescia | E49: 10 | F49: 2014-04-06 | G49: 189
B50: BVD-350/EJ | C50: CARTUCCIA FILTRO DA 8 MICRON | D50: Milano | E50: 4 | F50: 2014-04-09 | G50: 135
B51: EVW-340/RN | C51: OLFLEX FD CLASSIC 810 CY 4G0,5 | D51: Firenze | E51: 8 | F51: 2014-04-16 | G51: 370
B52: NWC-213/WR | C52: KIT MAGNETE M.W. | D52: Milano | E52: 6 | F52: 2014-04-23 | G52: 183
B53: WTT-322/YR | C53: CURVA 45ｰ F.F. 1 ZINC." | D53: Milano | E53: 14 | F53: 2014-04-30 | G53: 271
B54: NWC-213/WR | C54: KIT MAGNETE M.W. | D54: Messina | E54: 16 | F54: 2014-05-07 | G54: 102
B55: SYA-341/BM | C55: PIGNONI SEMPLICI 3/4 Z21 | D55: Roma | E55: 18 | F55: 2014-05-12 | G55: 203
B56: OQJ-149/CP | C56: KIT COMPLETO GUARNIZIONI CILINDRO 125 | D56: Roma | E56: 18 | F56: 2014-05-20 | G56: 326
B57: SYA-341/BM | C57: PIGNONI SEMPLICI 3/4 Z21 | D57: Roma | E57: 18 | F57: 2014-05-27 | G57: 185
B58: OCI-162/XK | C58: KIT COMPLETO GUARNIZIONI CILINDRO 80 CMPC | D58: Brescia | E58: 18 | F58: 2014-05-30 | G58: 344
B59: HYM-126/TJ | C59: VALVOLA RIDUTTRICE DI PRESSIONE DA 40 MBAR | D59: Milano | E59: 14 | F59: 2014-06-05 | G59: 220
B60: LCJ-304/BX | C60: KIT REVISIONE CILINDRO M.W. | D60: Milano | E60: 10 | F60: 2014-06-11 | G60: 72
B61: RVG-263/JX | C61: SERVOVALVOLA CON ROTORE DINAMICO | D61: Messina | E61: 8 | F61: 2014-06-17 | G61: 186
B62: OQJ-149/CP | C62: KIT COMPLETO GUARNIZIONI CILINDRO 125 | D62: Messina | E62: 16 | F62: 2014-06-25 | G62: 162
B63: DBY-128/GN | C63: AMMONIACA ANIDRA UN BOMBOLA DA KG.25 | D63: Roma | E63: 8 | F63: 2014-06-28 | G63: 239
B64: SGY-295/PG | C64: PIGNONE SEMPL. 3/4 Z9" | D64: Brescia | E64: 10 | F64: 2014-06-30 | G64: 84
B65: NWC-213/WR | C65: KIT MAGNETE M.W. | D65: Messina | E65: 10 | F65: 2014-07-07 | G65: 92
B66: FRF-171/ZE | C66: KIT GUARNIZIONI LC25...6X/LC25DB/DR-5X | D66: Firenze | E66: 12 | F66: 2014-07-10 | G66: 141
B67: OCI-162/XK | C67: KIT COMPLETO GUARNIZIONI CILINDRO 80 CMPC | D67: Firenze | E67: 12 | F67: 2014-07-18 | G67: 294
B68: GTN-188/OI | C68: VALVOLA RITEGNO A PIASTRA Z1S 10 P2-3X/V | D68: Milano | E68: 16 | F68: 2014-07-24 | G68: 193
B69: RVA-370/MO | C69: ELEMENTO LOGICO LC 40 DB20E7X/ | D69: Messina | E69: 6 | F69: 2014-07-29 | G69: 137
B70: EJJ-243/RK | C70: OLFLEX FD CLASSIC 810 7G0,5 | D70: Roma | E70: 16 | F70: 2014-08-06 | G70: 338
B71: HYM-126/TJ | C71: VALVOLA RIDUTTRICE DI PRESSIONE DA 40 MBAR | D71: Brescia | E71: 14 | F71: 2014-08-13 | G71: 209
B72: LBW-277/ME | C72: KIT COMPLETO GUARNIZIONI PER CILINDRO 80 | D72: Milano | E72: 16 | F72: 2014-08-19 | G72: 162
B73: RVG-263/JX | C73: SERVOVALVOLA CON ROTORE DINAMICO | D73: Milano | E73: 16 | F73: 2014-08-22 | G73: 92
B74: OQJ-149/CP | C74: KIT COMPLETO GUARNIZIONI CILINDRO 125 | D74: Roma | E74: 6 | F74: 2014-08-25 | G74: 320
B75: RVA-370/MO | C75: ELEMENTO LOGICO LC 40 DB20E7X/ | D75: Brescia | E75: 14 | F75: 2014-08-30 | G75: 296
B76: DBY-128/GN | C76: AMMONIACA ANIDRA UN BOMBOLA DA KG.25 | D76: Firenze | E76: 12 | F76: 2014-09-02 | G76: 220
B77: LCJ-304/BX | C77: KIT REVISIONE CILINDRO M.W. | D77: Milano | E77: 4 | F77: 2014-09-08 | G77: 68
B78: LCJ-304/BX | C78: KIT REVISIONE CILINDRO M.W. | D78: Messina | E78: 16 | F78: 2014-09-10 | G78: 144
B79: GTN-188/OI | C79: VALVOLA RITEGNO A PIASTRA Z1S 10 P2-3X/V | D79: Messina | E79: 18 | F79: 2014-09-14 | G79: 184
B80: OYZ-311/GH | C80: COPERCHIO ELEMENTO LOGICO LFA 25 KWA-7X/ | D80: Roma | E80: 14 | F80: 2014-09-17 | G80: 255
B81: QBI-332/YQ | C81: FORCELLA FEMMINA CON SNODO SGS/M16X1.5 | D81: Messina | E81: 16 | F81: 2014-09-22 | G81: 214
B82: OQJ-149/CP | C82: KIT COMPLETO GUARNIZIONI CILINDRO 125 | D82: Messina | E82: 8 | F82: 2014-09-28 | G82: 154
B83: HOU-335/QO | C83: VALVOLA DI RITEGNO PILOTATA Z2FS 16-3X/S2 | D83: Roma | E83: 12 | F83: 2014-09-30 | G83: 237
B84: RVG-263/JX | C84: SERVOVALVOLA CON ROTORE DINAMICO | D84: Brescia | E84: 12 | F84: 2014-10-08 | G84: 351
B85: FRF-171/ZE | C85: KIT GUARNIZIONI LC25...6X/LC25DB/DR-5X | D85: Firenze | E85: 18 | F85: 2014-10-16 | G85: 123
B86: FRF-171/ZE | C86: KIT GUARNIZIONI LC25...6X/LC25DB/DR-5X | D86: Brescia | E86: 16 | F86: 2014-10-22 | G86: 192
B87: KWO-343/SK | C87: VITI TCCEI 12.9 UNI 5931 BR. M20 X 140 | D87: Firenze | E87: 12 | F87: 2014-10-28 | G87: 298
B88: IGF-330/RW | C88: RUOTE 65 SERIE RINFORZATA CON FRENO | D88: Milano | E88: 14 | F88: 2014-11-01 | G88: 169
B89: EVW-340/RN | C89: OLFLEX FD CLASSIC 810 CY 4G0,5 | D89: Brescia | E89: 8 | F89: 2014-11-09 | G89: 125
B90: OQJ-149/CP | C90: KIT COMPLETO GUARNIZIONI CILINDRO 125 | D90: Firenze | E90: 4 | F90: 2014-11-13 | G90: 136
B91: LBW-277/ME | C91: KIT COMPLETO GUARNIZIONI PER CILINDRO 80 | D91: Messina | E91: 8 | F91: 2014-11-20 | G91: 201
B92: KWO-343/SK | C92: VITI TCCEI 12.9 UNI 5931 BR. M20 X 140 | D92: Milano | E92: 18 | F92: 2014-11-26 | G92: 158
B93: RVA-370/MO | C93: ELEMENTO LOGICO LC 40 DB20E7X/ | D93: Messina | E93: 14 | F93: 2014-12-04 | G93: 123
B94: BVD-350/EJ | C94: CARTUCCIA FILTRO DA 8 MICRON | D94: Brescia | E94: 4 | F94: 2014-12-12 | G94: 350
C97: Seleziona il Magazzino : | D97: Roma
B101: GIACENZE FINALI NEL MAGAZZINO SELEZIONATO AL 31 DICEMBRE 2014
B102: COD. ART. | C102: DESCRIZIONE ARTICOLO | D102: ="Q.TA' " &D97 -> Q.TA' Roma
B103: BVD-350/EJ | C103: CARTUCCIA FILTRO DA 8 MICRON | D103: =SUMPRODUCT(($B$5:$B$28=B103)*($D$4:$H$4="Q.TA' "&$D$97)*$D$5:$H$28)-SUMPRODUCT($E$34:$E$94*($B$34:$B$94=B103)*($D$34:$D$94=$D$97)) -> 228
B104: DBY-128/GN | C104: AMMONIACA ANIDRA UN BOMBOLA DA KG.25 | D104: =SUMPRODUCT(($B$5:$B$28=B104)*($D$4:$H$4="Q.TA' "&$D$97)*$D$5:$H$28)-SUMPRODUCT($E$34:$E$94*($B$34:$B$94=B104)*($D$34:$D$94=$D$97)) -> 239
B105: EJJ-243/RK | C105: OLFLEX FD CLASSIC 810 7G0,5 | D105: 338
B106: EVW-340/RN | C106: OLFLEX FD CLASSIC 810 CY 4G0,5 | D106: 369
B107: FRF-171/ZE | C107: KIT GUARNIZIONI LC25...6X/LC25DB/DR-5X | D107: 152
B108: GTN-188/OI | C108: VALVOLA RITEGNO A PIASTRA Z1S 10 P2-3X/V | D108: 211
B109: HOU-335/QO | C109: VALVOLA DI RITEGNO PILOTATA Z2FS 16-3X/S2 | D109: 237
B110: HYM-126/TJ | C110: VALVOLA RIDUTTRICE DI PRESSIONE DA 40 MBAR | D110: 215
B111: IAB-347/TY | C111: REGOLATORE DI FLUSSO Z2FS 10-3-3 X/ V | D111: 303
B112: IGF-330/RW | C112: RUOTE 65 SERIE RINFORZATA CON FRENO | D112: 324
B113: KWO-343/SK | C113: VITI TCCEI 12.9 UNI 5931 BR. M20 X 140 | D113: 293
B114: KWX-234/AH | C114: KIT REVISIONE CILINDRO M.W. | D114: 251
B115: LBW-277/ME | C115: KIT COMPLETO GUARNIZIONI PER CILINDRO 80 | D115: 303
B116: LCJ-304/BX | C116: KIT REVISIONE CILINDRO M.W. | D116: 353
B117: NWC-213/WR | C117: KIT MAGNETE M.W. | D117: 253
B118: OCI-162/XK | C118: KIT COMPLETO GUARNIZIONI CILINDRO 80 CMPC | D118: 168
B119: OQJ-149/CP | C119: KIT COMPLETO GUARNIZIONI CILINDRO 125 | D119: 320
B120: OYZ-311/GH | C120: COPERCHIO ELEMENTO LOGICO LFA 25 KWA-7X/ | D120: 255
B121: QBI-332/YQ | C121: FORCELLA FEMMINA CON SNODO SGS/M16X1.5 | D121: 122
B122: RVA-370/MO | C122: ELEMENTO LOGICO LC 40 DB20E7X/ | D122: 252
B123: RVG-263/JX | C123: SERVOVALVOLA CON ROTORE DINAMICO | D123: 338
B124: SGY-295/PG | C124: PIGNONE SEMPL. 3/4 Z9" | D124: 185
B125: SYA-341/BM | C125: PIGNONI SEMPLICI 3/4 Z21 | D125: 185
B126: WTT-322/YR | C126: CURVA 45ｰ F.F. 1 ZINC." | D126: 181

Sheet Foglio2

Sheet Foglio3
